Department Family,Entity,Date Paid,Expense Type,Expense Area,Supplier,Transaction Number,Amount (�),Supplier VAT Registration Number
BEIS,Met Office,2024-01-29,06 ACCOMMODATION,CHIEF FINANCIAL OFFICER,ABOVE THE REST COMMERCIAL CLEANING LTD,488062,41,166969348
BEIS,Met Office,2024-01-03,06 ACCOMMODATION,CHIEF FINANCIAL OFFICER,ABOVE THE REST COMMERCIAL CLEANING LTD,487096,565,166969348
BEIS,Met Office,2024-01-29,06 ACCOMMODATION,CHIEF FINANCIAL OFFICER,ABOVE THE REST COMMERCIAL CLEANING LTD,488061,565,166969348
BEIS,Met Office,2024-01-09,11 SERVICES,CHIEF FINANCIAL OFFICER,ADT FIRE AND SECURITY PLC,487455,63.96,413633086
BEIS,Met Office,2024-01-05,11 SERVICES,CHIEF FINANCIAL OFFICER,ALLSTAR BUSINESS SOLUTIONS LTD,487235,1553.58,747880191
BEIS,Met Office,2024-01-17,11 SERVICES,CHIEF FINANCIAL OFFICER,ALLSTAR BUSINESS SOLUTIONS LTD,487759,2381.89,747880191
BEIS,Met Office,2024-01-08,06 ACCOMMODATION,CHIEF FINANCIAL OFFICER,ANGLIAN WATER BUSINESS NATIONAL LTD,482814,-144.44,51406002
BEIS,Met Office,2024-01-08,06 ACCOMMODATION,CHIEF FINANCIAL OFFICER,ANGLIAN WATER BUSINESS NATIONAL LTD,482821,-88.32,51406002
BEIS,Met Office,2024-01-08,06 ACCOMMODATION,CHIEF FINANCIAL OFFICER,ANGLIAN WATER BUSINESS NATIONAL LTD,482818,-36.21,51406002
BEIS,Met Office,2024-01-08,06 ACCOMMODATION,CHIEF FINANCIAL OFFICER,ANGLIAN WATER BUSINESS NATIONAL LTD,482819,-31.44,51406002
BEIS,Met Office,2024-01-08,06 ACCOMMODATION,CHIEF FINANCIAL OFFICER,ANGLIAN WATER BUSINESS NATIONAL LTD,482816,-9.84,51406002
BEIS,Met Office,2024-01-08,06 ACCOMMODATION,CHIEF FINANCIAL OFFICER,ANGLIAN WATER BUSINESS NATIONAL LTD,482902,12.06,51406002
BEIS,Met Office,2024-01-08,06 ACCOMMODATION,CHIEF FINANCIAL OFFICER,ANGLIAN WATER BUSINESS NATIONAL LTD,482839,14.75,51406002
BEIS,Met Office,2024-01-08,06 ACCOMMODATION,CHIEF FINANCIAL OFFICER,ANGLIAN WATER BUSINESS NATIONAL LTD,482820,21.6,51406002
BEIS,Met Office,2024-01-08,06 ACCOMMODATION,CHIEF FINANCIAL OFFICER,ANGLIAN WATER BUSINESS NATIONAL LTD,482837,34.29,51406002
BEIS,Met Office,2024-01-08,06 ACCOMMODATION,CHIEF FINANCIAL OFFICER,ANGLIAN WATER BUSINESS NATIONAL LTD,484106,35.32,51406002
BEIS,Met Office,2024-01-08,06 ACCOMMODATION,CHIEF FINANCIAL OFFICER,ANGLIAN WATER BUSINESS NATIONAL LTD,482822,39,51406002
BEIS,Met Office,2024-01-08,06 ACCOMMODATION,CHIEF FINANCIAL OFFICER,ANGLIAN WATER BUSINESS NATIONAL LTD,487214,44.23,51406002
BEIS,Met Office,2024-01-08,06 ACCOMMODATION,CHIEF FINANCIAL OFFICER,ANGLIAN WATER BUSINESS NATIONAL LTD,482815,71.33,51406002
BEIS,Met Office,2024-01-08,06 ACCOMMODATION,CHIEF FINANCIAL OFFICER,ANGLIAN WATER BUSINESS NATIONAL LTD,482838,73.11,51406002
BEIS,Met Office,2024-01-31,13 MISCELLANEOUS,CHIEF FINANCIAL OFFICER,ANTRIM HILLS SPRING WATER CO LTD,487810,-56,517173455
BEIS,Met Office,2024-01-09,13 MISCELLANEOUS,CHIEF FINANCIAL OFFICER,ANTRIM HILLS SPRING WATER CO LTD,487437,21,517173455
BEIS,Met Office,2024-01-31,13 MISCELLANEOUS,CHIEF FINANCIAL OFFICER,ANTRIM HILLS SPRING WATER CO LTD,487809,22.5,517173455
BEIS,Met Office,2024-01-09,13 MISCELLANEOUS,CHIEF FINANCIAL OFFICER,ANTRIM HILLS SPRING WATER CO LTD,487438,24,517173455
BEIS,Met Office,2024-01-31,13 MISCELLANEOUS,CHIEF FINANCIAL OFFICER,ANTRIM HILLS SPRING WATER CO LTD,488170,62.5,517173455
BEIS,Met Office,2024-01-15,11 SERVICES,CHIEF FINANCIAL OFFICER,ANVIL MOBILE LIMITED,487592,82.6,981686175
BEIS,Met Office,2024-01-05,11 SERVICES,CHIEF FINANCIAL OFFICER,APPLE CENTRAL TAXIS,487049,-4086.5,449238720
BEIS,Met Office,2024-01-18,11 SERVICES,CHIEF FINANCIAL OFFICER,APPLE CENTRAL TAXIS,487833,1877.4,449238720
BEIS,Met Office,2024-01-05,11 SERVICES,CHIEF FINANCIAL OFFICER,APPLE CENTRAL TAXIS,487276,4076.5,449238720
BEIS,Met Office,2024-01-05,11 SERVICES,CHIEF FINANCIAL OFFICER,APPLE CENTRAL TAXIS,486970,4086.5,449238720
BEIS,Met Office,2024-01-26,06 ACCOMMODATION,CHIEF FINANCIAL OFFICER,Bedford Borough Council,488060,2924.34,-
BEIS,Met Office,2024-01-08,06 ACCOMMODATION,CHIEF FINANCIAL OFFICER,Belfast International Airport Ltd,487337,296.25,617777601
BEIS,Met Office,2024-01-08,06 ACCOMMODATION,CHIEF FINANCIAL OFFICER,Belfast International Airport Ltd,487076,3781.43,617777601
BEIS,Met Office,2024-01-03,06 ACCOMMODATION,CHIEF FINANCIAL OFFICER,Belfast International Airport Ltd,487098,24491.3,617777601
BEIS,Met Office,2024-01-03,06 ACCOMMODATION,CHIEF FINANCIAL OFFICER,BIDVEST NOONAN UK LTD,487117,95.63,GB847176988
BEIS,Met Office,2024-01-08,06 ACCOMMODATION,CHIEF FINANCIAL OFFICER,BIDVEST NOONAN UK LTD,487278,191.01,GB847176988
BEIS,Met Office,2024-01-05,06 ACCOMMODATION,CHIEF FINANCIAL OFFICER,BIDVEST NOONAN UK LTD,487121,501.58,GB847176988
BEIS,Met Office,2024-01-29,06 ACCOMMODATION,CHIEF FINANCIAL OFFICER,BIDVEST NOONAN UK LTD,488071,501.58,GB847176988
BEIS,Met Office,2024-01-05,06 ACCOMMODATION,CHIEF FINANCIAL OFFICER,BIDVEST NOONAN UK LTD,487120,1111.97,GB847176988
BEIS,Met Office,2024-01-29,06 ACCOMMODATION,CHIEF FINANCIAL OFFICER,BIDVEST NOONAN UK LTD,488072,1111.97,GB847176988
BEIS,Met Office,2024-01-05,06 ACCOMMODATION,CHIEF FINANCIAL OFFICER,Biffa Waste Services Ltd,487206,535.54,537911627
BEIS,Met Office,2024-01-05,06 ACCOMMODATION,CHIEF FINANCIAL OFFICER,Biffa Waste Services Ltd,487205,750.75,537911627
BEIS,Met Office,2024-01-31,06 ACCOMMODATION,CHIEF FINANCIAL OFFICER,Biffa Waste Services Ltd,488119,1181.75,537911627
BEIS,Met Office,2024-01-17,06 ACCOMMODATION,CHIEF FINANCIAL OFFICER,BIOTECTURE,487788,2175,925175422
BEIS,Met Office,2024-01-22,11 SERVICES,CHIEF FINANCIAL OFFICER,BITPOD LIMITED,487955,15301.59,124 9359 03
BEIS,Met Office,2024-01-17,11 SERVICES,CHIEF FINANCIAL OFFICER,British Red Cross Society,487440,279,706926227
BEIS,Met Office,2024-01-17,11 SERVICES,CHIEF FINANCIAL OFFICER,BT GLOBAL SERVICES,487785,514.15,245719348
BEIS,Met Office,2024-01-03,11 SERVICES,CHIEF FINANCIAL OFFICER,BT GLOBAL SERVICES,486919,5778.86,245719348
BEIS,Met Office,2024-01-23,11 SERVICES,CHIEF FINANCIAL OFFICER,BT GLOBAL SERVICES,487834,5778.86,245719348
BEIS,Met Office,2024-01-12,11 SERVICES,CHIEF FINANCIAL OFFICER,BT plc,487456,10651.56,245719348
BEIS,Met Office,2024-01-08,06 ACCOMMODATION,CHIEF FINANCIAL OFFICER,BUSINESS STREAM,487215,353.52,945850885
BEIS,Met Office,2024-01-24,11 SERVICES,CHIEF FINANCIAL OFFICER,CABINET OFFICE - COF LEAD ACCOUNT,487970,22086,-
BEIS,Met Office,2024-01-17,06 ACCOMMODATION,CHIEF FINANCIAL OFFICER,CALOR GAS LIMITED,487761,363.73,207610984
BEIS,Met Office,2024-01-10,06 ACCOMMODATION,CHIEF FINANCIAL OFFICER,CALOR GAS LIMITED,487452,1285,207610984
BEIS,Met Office,2024-01-08,13 MISCELLANEOUS,CHIEF FINANCIAL OFFICER,CANON UK LTD,487307,26.34,523797128
BEIS,Met Office,2024-01-09,13 MISCELLANEOUS,CHIEF FINANCIAL OFFICER,CANON UK LTD,487458,415.8,523797128
BEIS,Met Office,2024-01-08,13 MISCELLANEOUS,CHIEF FINANCIAL OFFICER,CANON UK LTD,487306,509.34,523797128
BEIS,Met Office,2024-01-19,13 MISCELLANEOUS,CHIEF FINANCIAL OFFICER,CANON UK LTD,487804,621.05,523797128
BEIS,Met Office,2024-01-24,11 SERVICES,CHIEF FINANCIAL OFFICER,CARBON CONTROL LIMITED,485003,540,923 978678
BEIS,Met Office,2024-01-03,06 ACCOMMODATION,CHIEF FINANCIAL OFFICER,CARDIFF EXECUTIVE CENTRE LTD,487099,2470,864497378
BEIS,Met Office,2024-01-03,06 ACCOMMODATION,CHIEF FINANCIAL OFFICER,CBRE MANAGED SERVICES LTD,486898,1941.57,853936883
BEIS,Met Office,2024-01-29,06 ACCOMMODATION,CHIEF FINANCIAL OFFICER,CBRE MANAGED SERVICES LTD,488045,10692,853936883
BEIS,Met Office,2024-01-03,06 ACCOMMODATION,CHIEF FINANCIAL OFFICER,CBRE MANAGED SERVICES LTD,486898,15436.15,853936883
BEIS,Met Office,2024-01-03,06 ACCOMMODATION,CHIEF FINANCIAL OFFICER,CBRE MANAGED SERVICES LTD,486897,17248.19,853936883
BEIS,Met Office,2024-01-08,06 ACCOMMODATION,CHIEF FINANCIAL OFFICER,CBRE MANAGED SERVICES LTD,487304,17534.45,853936883
BEIS,Met Office,2024-01-08,06 ACCOMMODATION,CHIEF FINANCIAL OFFICER,CBRE MANAGED SERVICES LTD,487305,20510.86,853936883
BEIS,Met Office,2024-01-08,06 ACCOMMODATION,CHIEF FINANCIAL OFFICER,CBRE MANAGED SERVICES LTD,487303,30471.98,853936883
BEIS,Met Office,2024-01-03,06 ACCOMMODATION,CHIEF FINANCIAL OFFICER,CBRE MANAGED SERVICES LTD,486898,46615.57,853936883
BEIS,Met Office,2024-01-05,06 ACCOMMODATION,CHIEF FINANCIAL OFFICER,CBRE MANAGED SERVICES LTD,486893,72110,853936883
BEIS,Met Office,2024-01-05,06 ACCOMMODATION,CHIEF FINANCIAL OFFICER,CBRE MANAGED SERVICES LTD,486893,82171.85,853936883
BEIS,Met Office,2024-01-19,08 SOFTWARE LICENCES,CHIEF FINANCIAL OFFICER,CEMAR,487805,850,915042161
BEIS,Met Office,2024-01-23,13 MISCELLANEOUS,CHIEF FINANCIAL OFFICER,COURIER FORCE,487956,150,924397208
BEIS,Met Office,2024-01-30,13 MISCELLANEOUS,CHIEF FINANCIAL OFFICER,COURIER FORCE,488143,275,924397208
BEIS,Met Office,2024-01-16,13 MISCELLANEOUS,CHIEF FINANCIAL OFFICER,COURIER FORCE,487704,495,924397208
BEIS,Met Office,2024-01-29,06 ACCOMMODATION,CHIEF FINANCIAL OFFICER,D&G OFFICE SERVICES LTD,488097,384,272997547
BEIS,Met Office,2024-01-30,11 SERVICES,CHIEF FINANCIAL OFFICER,DAVITT JONES BOULD,487518,0,729159704
BEIS,Met Office,2024-01-10,11 SERVICES,CHIEF FINANCIAL OFFICER,DAVITT JONES BOULD,487519,0,729159704
BEIS,Met Office,2024-01-30,11 SERVICES,CHIEF FINANCIAL OFFICER,DAVITT JONES BOULD,488147,0,729159704
BEIS,Met Office,2024-01-08,11 SERVICES,CHIEF FINANCIAL OFFICER,ECMWF,487083,2141.57,NOTVATREG
BEIS,Met Office,2024-01-31,13 MISCELLANEOUS,CHIEF FINANCIAL OFFICER,EDEN SPRINGS UK LTD,488096,615.05,232160411
BEIS,Met Office,2024-01-03,13 MISCELLANEOUS,CHIEF FINANCIAL OFFICER,EDEN SPRINGS UK LTD,487119,643.51,232160411
BEIS,Met Office,2024-01-17,06 ACCOMMODATION,CHIEF FINANCIAL OFFICER,EDF ENERGY CUSTOMERS PLC,487714,45210.92,523041202
BEIS,Met Office,2024-01-17,06 ACCOMMODATION,CHIEF FINANCIAL OFFICER,EDF ENERGY CUSTOMERS PLC,487739,207484.86,523041202
BEIS,Met Office,2024-01-17,06 ACCOMMODATION,CHIEF FINANCIAL OFFICER,EDF ENERGY CUSTOMERS PLC,487740,213451.26,523041202
BEIS,Met Office,2024-01-17,06 ACCOMMODATION,CHIEF FINANCIAL OFFICER,EDF ENERGY CUSTOMERS PLC,487738,571277.56,523041202
BEIS,Met Office,2024-01-24,11 SERVICES,CHIEF FINANCIAL OFFICER,EIR,25581,58.08,4736919B
BEIS,Met Office,2024-01-03,11 SERVICES,CHIEF FINANCIAL OFFICER,EIR,25527,58.28,4736919B
BEIS,Met Office,2024-01-22,03 STAFF COSTS T&S,CHIEF FINANCIAL OFFICER,ENTERPRISE RENT A CAR UK LTD,487944,90.8,215557314
BEIS,Met Office,2024-01-30,03 STAFF COSTS T&S,CHIEF FINANCIAL OFFICER,ENTERPRISE RENT A CAR UK LTD,488141,181.03,215557314
BEIS,Met Office,2024-01-16,03 STAFF COSTS T&S,CHIEF FINANCIAL OFFICER,ENTERPRISE RENT A CAR UK LTD,487692,446.88,215557314
BEIS,Met Office,2024-01-24,03 STAFF COSTS T&S,CHIEF FINANCIAL OFFICER,ENTERPRISE RENT A CAR UK LTD,487994,782.16,215557314
BEIS,Met Office,2024-01-05,03 STAFF COSTS T&S,CHIEF FINANCIAL OFFICER,ENTERPRISE RENT A CAR UK LTD,487229,973.4,215557314
BEIS,Met Office,2024-01-10,03 STAFF COSTS T&S,CHIEF FINANCIAL OFFICER,ENTERPRISE RENT A CAR UK LTD,487485,1240.14,215557314
BEIS,Met Office,2024-01-16,03 STAFF COSTS T&S,CHIEF FINANCIAL OFFICER,ENTERPRISE RENT A CAR UK LTD,487693,1774.71,215557314
BEIS,Met Office,2024-01-22,03 STAFF COSTS T&S,CHIEF FINANCIAL OFFICER,ENTERPRISE RENT A CAR UK LTD,487943,2408.76,215557314
BEIS,Met Office,2024-01-03,03 STAFF COSTS T&S,CHIEF FINANCIAL OFFICER,ENTERPRISE RENT A CAR UK LTD,487127,2992.25,215557314
BEIS,Met Office,2024-01-03,03 STAFF COSTS T&S,CHIEF FINANCIAL OFFICER,ENTERPRISE RENT A CAR UK LTD,486913,3145.41,215557314
BEIS,Met Office,2024-01-30,03 STAFF COSTS T&S,CHIEF FINANCIAL OFFICER,ENTERPRISE RENT A CAR UK LTD,488140,3618.14,215557314
BEIS,Met Office,2024-01-15,06 ACCOMMODATION,CHIEF FINANCIAL OFFICER,Exeter City Council,479463,168960,142335594
BEIS,Met Office,2024-01-22,11 SERVICES,CHIEF FINANCIAL OFFICER,EXPONENTIAL-E,487822,-451.86,GB798572653
BEIS,Met Office,2024-01-12,11 SERVICES,CHIEF FINANCIAL OFFICER,EXPONENTIAL-E,487481,253.57,GB798572653
BEIS,Met Office,2024-01-22,11 SERVICES,CHIEF FINANCIAL OFFICER,EXPONENTIAL-E,487823,451.86,GB798572653
BEIS,Met Office,2024-01-22,11 SERVICES,CHIEF FINANCIAL OFFICER,EXPONENTIAL-E,487298,2281.82,GB798572653
BEIS,Met Office,2024-01-31,06 ACCOMMODATION,CHIEF FINANCIAL OFFICER,FMS INTERIOR SERVICES LTD,488162,7881.46,922056940
BEIS,Met Office,2024-01-11,11 SERVICES,CHIEF FINANCIAL OFFICER,GAMMA TELECOM LTD,487541,570.83,823820344
BEIS,Met Office,2024-01-11,11 SERVICES,CHIEF FINANCIAL OFFICER,GAMMA TELECOM LTD,487541,1225.12,823820344
BEIS,Met Office,2024-01-11,11 SERVICES,CHIEF FINANCIAL OFFICER,GAMMA TELECOM LTD,487541,27997.74,823820344
BEIS,Met Office,2024-01-12,11 SERVICES,CHIEF FINANCIAL OFFICER,GB GROUP PLC,487435,73.21,539716218
BEIS,Met Office,2024-01-12,11 SERVICES,CHIEF FINANCIAL OFFICER,GB GROUP PLC,487526,317.28,539716218
BEIS,Met Office,2024-01-17,11 SERVICES,CHIEF FINANCIAL OFFICER,GIBRALTAR NYNEX COMMUNICATIONS LTD,487702,660,NOVAT
BEIS,Met Office,2024-01-16,06 ACCOMMODATION,CHIEF FINANCIAL OFFICER,GRS BUILDING SERVICES SOUTH-WEST,487690,565.04,-
BEIS,Met Office,2024-01-16,06 ACCOMMODATION,CHIEF FINANCIAL OFFICER,GRS BUILDING SERVICES SOUTH-WEST,487701,8853.91,-
BEIS,Met Office,2024-01-05,06 ACCOMMODATION,CHIEF FINANCIAL OFFICER,HAFREN DYFRDWY CYFYNGEDIG,487217,3200,486985565
BEIS,Met Office,2024-01-05,06 ACCOMMODATION,CHIEF FINANCIAL OFFICER,HARVAIR LTD,486966,1500,N/A
BEIS,Met Office,2024-01-09,13 MISCELLANEOUS,CHIEF FINANCIAL OFFICER,HEALIX INSURANCE SERVICES LTD,487272,50159.1,-
BEIS,Met Office,2024-01-09,13 MISCELLANEOUS,CHIEF FINANCIAL OFFICER,HEALIX INTERNATIONAL,487273,13671.2,127632909
BEIS,Met Office,2024-01-05,06 ACCOMMODATION,CHIEF FINANCIAL OFFICER,HIGHLANDS & ISLANDS AIRPORTS LTD.,487274,262,945667772
BEIS,Met Office,2024-01-30,06 ACCOMMODATION,CHIEF FINANCIAL OFFICER,HSB ENGINEERING INSURANCE SERVICES LTD,481831,-1225.8,652642243
BEIS,Met Office,2024-01-30,06 ACCOMMODATION,CHIEF FINANCIAL OFFICER,HSB ENGINEERING INSURANCE SERVICES LTD,481832,-347.6,652642243
BEIS,Met Office,2024-01-12,06 ACCOMMODATION,CHIEF FINANCIAL OFFICER,INFOGRID,487623,18214,293809562
BEIS,Met Office,2024-01-03,11 SERVICES,CHIEF FINANCIAL OFFICER,INTEROUTE COMMUNICATIONS LIMITED,486918,-1272.26,832 7071 39
BEIS,Met Office,2024-01-22,11 SERVICES,CHIEF FINANCIAL OFFICER,INTEROUTE COMMUNICATIONS LIMITED,487687,8000,832 7071 39
BEIS,Met Office,2024-01-03,11 SERVICES,CHIEF FINANCIAL OFFICER,INTEROUTE COMMUNICATIONS LIMITED,486917,9422.58,832 7071 39
BEIS,Met Office,2024-01-17,06 ACCOMMODATION,CHIEF FINANCIAL OFFICER,JAMES & MARCIA BENJAMIN,487100,520,-
BEIS,Met Office,2024-01-10,11 SERVICES,CHIEF FINANCIAL OFFICER,JERSEY TELECOM,487267,1292.4,NOTVATREG
BEIS,Met Office,2024-01-10,11 SERVICES,CHIEF FINANCIAL OFFICER,LEASEDRIVE RENTAL MANAGEMENT LTD,487478,590.98,733546040
BEIS,Met Office,2024-01-05,11 SERVICES,CHIEF FINANCIAL OFFICER,LICENCE BUREAU LTD,487248,33.85,820219467
BEIS,Met Office,2024-01-17,11 SERVICES,CHIEF FINANCIAL OFFICER,LOGICALIS UK Limited,487736,537.5,864475392
BEIS,Met Office,2024-01-10,13 MISCELLANEOUS,CHIEF FINANCIAL OFFICER,MAPP (PROPERTY MANAGEMENT) LTD,487475,198.43,725900735
BEIS,Met Office,2024-01-05,06 ACCOMMODATION,CHIEF FINANCIAL OFFICER,MAPP (PROPERTY MANAGEMENT) LTD,487149,4527,725900735
BEIS,Met Office,2024-01-30,11 SERVICES,CHIEF FINANCIAL OFFICER,MAWASEM LTD,487698,136022.5,197694731
BEIS,Met Office,2024-01-26,06 ACCOMMODATION,CHIEF FINANCIAL OFFICER,METRIKUS LIMITED,488017,625,321 8772 02
BEIS,Met Office,2024-01-05,11 SERVICES,CHIEF FINANCIAL OFFICER,METRIKUS LIMITED,487299,7024,321 8772 02
BEIS,Met Office,2024-01-15,06 ACCOMMODATION,CHIEF FINANCIAL OFFICER,Mitie Landscapes Ltd,487673,1500,GB 416 706 654
BEIS,Met Office,2024-01-15,06 ACCOMMODATION,CHIEF FINANCIAL OFFICER,Mitie Landscapes Ltd,487674,1500,GB 416 706 654
BEIS,Met Office,2024-01-15,06 ACCOMMODATION,CHIEF FINANCIAL OFFICER,Mitie Landscapes Ltd,487672,5168.59,GB 416 706 654
BEIS,Met Office,2024-01-12,06 ACCOMMODATION,CHIEF FINANCIAL OFFICER,Mitie Landscapes Ltd,487597,5563.07,GB 416 706 654
BEIS,Met Office,2024-01-29,11 SERVICES,CHIEF FINANCIAL OFFICER,MITIE SECURITY LTD,488075,1166.14,416706654
BEIS,Met Office,2024-01-29,11 SERVICES,CHIEF FINANCIAL OFFICER,MITIE SECURITY LTD,488075,2321.88,416706654
BEIS,Met Office,2024-01-05,11 SERVICES,CHIEF FINANCIAL OFFICER,MITIE SECURITY LTD,487109,3488.02,416706654
BEIS,Met Office,2024-01-16,11 SERVICES,CHIEF FINANCIAL OFFICER,MITIE SECURITY LTD,487706,3851.52,416706654
BEIS,Met Office,2024-01-16,11 SERVICES,CHIEF FINANCIAL OFFICER,MITIE SECURITY LTD,487709,5890.56,416706654
BEIS,Met Office,2024-01-16,11 SERVICES,CHIEF FINANCIAL OFFICER,MITIE SECURITY LTD,487710,6570.24,416706654
BEIS,Met Office,2024-01-16,11 SERVICES,CHIEF FINANCIAL OFFICER,MITIE SECURITY LTD,487707,7929.6,416706654
BEIS,Met Office,2024-01-05,11 SERVICES,CHIEF FINANCIAL OFFICER,MITIE SECURITY LTD,487109,8137,416706654
BEIS,Met Office,2024-01-29,11 SERVICES,CHIEF FINANCIAL OFFICER,MITIE SECURITY LTD,488075,8137,416706654
BEIS,Met Office,2024-01-16,11 SERVICES,CHIEF FINANCIAL OFFICER,MITIE SECURITY LTD,487708,8873.6,416706654
BEIS,Met Office,2024-01-16,11 SERVICES,CHIEF FINANCIAL OFFICER,MITIE SECURITY LTD,487711,9288.96,416706654
BEIS,Met Office,2024-01-12,11 SERVICES,CHIEF FINANCIAL OFFICER,MITIE SECURITY LTD,487244,10544.48,416706654
BEIS,Met Office,2024-01-05,11 SERVICES,CHIEF FINANCIAL OFFICER,MITIE SECURITY LTD,487110,23148.5,416706654
BEIS,Met Office,2024-01-29,11 SERVICES,CHIEF FINANCIAL OFFICER,MITIE SECURITY LTD,488073,23148.5,416706654
BEIS,Met Office,2024-01-08,06 ACCOMMODATION,CHIEF FINANCIAL OFFICER,MORAY COUNCIL,487266,117.13,663755506
BEIS,Met Office,2024-01-17,06 ACCOMMODATION,CHIEF FINANCIAL OFFICER,MORAY COUNCIL,487756,3112.5,663755506
BEIS,Met Office,2024-01-10,11 SERVICES,CHIEF FINANCIAL OFFICER,Morton Fraser LLP,487510,44,269129336
BEIS,Met Office,2024-01-03,11 SERVICES,CHIEF FINANCIAL OFFICER,Morton Fraser LLP,487081,313,269129336
BEIS,Met Office,2024-01-10,06 ACCOMMODATION,CHIEF FINANCIAL OFFICER,MOUNT CHARLES GROUP LTD,487441,496.27,517116274
BEIS,Met Office,2024-01-03,06 ACCOMMODATION,CHIEF FINANCIAL OFFICER,MR G ROBERTS,487101,480,-
BEIS,Met Office,2024-01-09,06 ACCOMMODATION,CHIEF FINANCIAL OFFICER,MR MARK J UPTON,487460,4500,N/A
BEIS,Met Office,2024-01-05,06 ACCOMMODATION,CHIEF FINANCIAL OFFICER,MR STEPHEN MEYRICK,487136,2921,-
BEIS,Met Office,2024-01-08,11 SERVICES,CHIEF FINANCIAL OFFICER,NEOS NETWORKS LTD,487249,1167.75,553769603
BEIS,Met Office,2024-01-08,13 MISCELLANEOUS,CHIEF FINANCIAL OFFICER,NORFOLK WATER LIMITED,487211,20.2,833 6292 22
BEIS,Met Office,2024-01-08,13 MISCELLANEOUS,CHIEF FINANCIAL OFFICER,NORSCOTT VENDING SERVICES LTD,487289,85,751402071
BEIS,Met Office,2024-01-29,13 MISCELLANEOUS,CHIEF FINANCIAL OFFICER,NORSK GLOBAL,487937,-86.45,GB635843324
BEIS,Met Office,2024-01-22,13 MISCELLANEOUS,CHIEF FINANCIAL OFFICER,NORSK GLOBAL,487941,-79.05,GB635843324
BEIS,Met Office,2024-01-22,13 MISCELLANEOUS,CHIEF FINANCIAL OFFICER,NORSK GLOBAL,487893,7.2,GB635843324
BEIS,Met Office,2024-01-30,13 MISCELLANEOUS,CHIEF FINANCIAL OFFICER,NORSK GLOBAL,488148,390.2,GB635843324
BEIS,Met Office,2024-01-16,13 MISCELLANEOUS,CHIEF FINANCIAL OFFICER,NORSK GLOBAL,487705,520.29,GB635843324
BEIS,Met Office,2024-01-29,13 MISCELLANEOUS,CHIEF FINANCIAL OFFICER,NORSK GLOBAL,488098,526.31,GB635843324
BEIS,Met Office,2024-01-12,13 MISCELLANEOUS,CHIEF FINANCIAL OFFICER,NORSK GLOBAL,487538,662.59,GB635843324
BEIS,Met Office,2024-01-22,13 MISCELLANEOUS,CHIEF FINANCIAL OFFICER,NORSK GLOBAL,487916,1127.37,GB635843324
BEIS,Met Office,2024-01-29,13 MISCELLANEOUS,CHIEF FINANCIAL OFFICER,NORSK GLOBAL,488099,1545.19,GB635843324
BEIS,Met Office,2024-01-08,06 ACCOMMODATION,CHIEF FINANCIAL OFFICER,OCS Group UK Limited,487237,63278.07,GB238034379
BEIS,Met Office,2024-01-10,11 SERVICES,CHIEF FINANCIAL OFFICER,OPEN TEXT UK LTD,487434,100,837871308
BEIS,Met Office,2024-01-05,06 ACCOMMODATION,CHIEF FINANCIAL OFFICER,OUR LADY OF BETHLEHEM ABBEY,487135,112,-
BEIS,Met Office,2024-01-05,06 ACCOMMODATION,CHIEF FINANCIAL OFFICER,P N & C BURDEN,487132,9443,619055736
BEIS,Met Office,2024-01-12,13 MISCELLANEOUS,CHIEF FINANCIAL OFFICER,Parcelforce,487630,16.05,GB 243 1700 02
BEIS,Met Office,2024-01-12,13 MISCELLANEOUS,CHIEF FINANCIAL OFFICER,Parcelforce,487629,44.52,GB 243 1700 02
BEIS,Met Office,2024-01-12,13 MISCELLANEOUS,CHIEF FINANCIAL OFFICER,Parcelforce,487514,46.7,GB 243 1700 02
BEIS,Met Office,2024-01-31,11 SERVICES,CHIEF FINANCIAL OFFICER,POD POINT,488137,179.62,278743455
BEIS,Met Office,2024-01-17,13 MISCELLANEOUS,CHIEF FINANCIAL OFFICER,POSTURITE (UK) LTD,487539,30.35,583565114
BEIS,Met Office,2024-01-17,13 MISCELLANEOUS,CHIEF FINANCIAL OFFICER,POSTURITE (UK) LTD,486927,50,583565114
BEIS,Met Office,2024-01-17,13 MISCELLANEOUS,CHIEF FINANCIAL OFFICER,POSTURITE (UK) LTD,486928,50,583565114
BEIS,Met Office,2024-01-17,13 MISCELLANEOUS,CHIEF FINANCIAL OFFICER,POSTURITE (UK) LTD,487093,50,583565114
BEIS,Met Office,2024-01-16,13 MISCELLANEOUS,CHIEF FINANCIAL OFFICER,POSTURITE (UK) LTD,487451,50,583565114
BEIS,Met Office,2024-01-16,13 MISCELLANEOUS,CHIEF FINANCIAL OFFICER,POSTURITE (UK) LTD,487694,50,583565114
BEIS,Met Office,2024-01-16,13 MISCELLANEOUS,CHIEF FINANCIAL OFFICER,POSTURITE (UK) LTD,487712,50,583565114
BEIS,Met Office,2024-01-23,13 MISCELLANEOUS,CHIEF FINANCIAL OFFICER,POSTURITE (UK) LTD,487900,50,583565114
BEIS,Met Office,2024-01-23,13 MISCELLANEOUS,CHIEF FINANCIAL OFFICER,POSTURITE (UK) LTD,487902,50,583565114
BEIS,Met Office,2024-01-29,13 MISCELLANEOUS,CHIEF FINANCIAL OFFICER,POSTURITE (UK) LTD,488019,50,583565114
BEIS,Met Office,2024-01-17,13 MISCELLANEOUS,CHIEF FINANCIAL OFFICER,POSTURITE (UK) LTD,486975,65.44,583565114
BEIS,Met Office,2024-01-17,13 MISCELLANEOUS,CHIEF FINANCIAL OFFICER,POSTURITE (UK) LTD,486974,73.18,583565114
BEIS,Met Office,2024-01-16,13 MISCELLANEOUS,CHIEF FINANCIAL OFFICER,POSTURITE (UK) LTD,487599,109.12,583565114
BEIS,Met Office,2024-01-16,13 MISCELLANEOUS,CHIEF FINANCIAL OFFICER,POSTURITE (UK) LTD,487713,112.25,583565114
BEIS,Met Office,2024-01-23,13 MISCELLANEOUS,CHIEF FINANCIAL OFFICER,POSTURITE (UK) LTD,487901,722.67,583565114
BEIS,Met Office,2024-01-17,13 MISCELLANEOUS,CHIEF FINANCIAL OFFICER,POSTURITE (UK) LTD,487757,851.69,583565114
BEIS,Met Office,2024-01-08,06 ACCOMMODATION,CHIEF FINANCIAL OFFICER,POWER NI ENERGY LTD,487270,898.09,617518142
BEIS,Met Office,2024-01-25,13 MISCELLANEOUS,CHIEF FINANCIAL OFFICER,POWER PACKING EXPORT SERVICE,487995,50,249 7326 31
BEIS,Met Office,2024-01-25,13 MISCELLANEOUS,CHIEF FINANCIAL OFFICER,POWER PACKING EXPORT SERVICE,487996,175,249 7326 31
BEIS,Met Office,2024-01-30,13 MISCELLANEOUS,CHIEF FINANCIAL OFFICER,POWER PACKING EXPORT SERVICE,488146,400,249 7326 31
BEIS,Met Office,2024-01-12,13 MISCELLANEOUS,CHIEF FINANCIAL OFFICER,POWER PACKING EXPORT SERVICE,487559,782,249 7326 31
BEIS,Met Office,2024-01-12,13 MISCELLANEOUS,CHIEF FINANCIAL OFFICER,POWER PACKING EXPORT SERVICE,487551,3705,249 7326 31
BEIS,Met Office,2024-01-03,08 SOFTWARE LICENCES,CHIEF FINANCIAL OFFICER,PROACTIS LIMITED,486979,9870,GB893169286
BEIS,Met Office,2024-01-30,03 STAFF COSTS T&S,CHIEF FINANCIAL OFFICER,RAINBOW CITY TAXIS,488144,69.62,724295039
BEIS,Met Office,2024-01-08,11 SERVICES,CHIEF FINANCIAL OFFICER,Reuters Ltd,487236,2610,397000555
BEIS,Met Office,2024-01-19,13 MISCELLANEOUS,CHIEF FINANCIAL OFFICER,RICHARD JAMES INTERNATIONAL LIMITED,487821,7.96,567 5529 01
BEIS,Met Office,2024-01-26,13 MISCELLANEOUS,CHIEF FINANCIAL OFFICER,RICHARD JAMES INTERNATIONAL LIMITED,488063,1002.95,567 5529 01
BEIS,Met Office,2024-01-11,06 ACCOMMODATION,CHIEF FINANCIAL OFFICER,RIVER RIDGE,487522,165.47,176286083
BEIS,Met Office,2024-01-05,06 ACCOMMODATION,CHIEF FINANCIAL OFFICER,RIVEROAK MSE LIMITED,487243,2049.19,326 084 707
BEIS,Met Office,2024-01-24,06 ACCOMMODATION,CHIEF FINANCIAL OFFICER,SAFESTORE LTD,487951,398.28,722887607
BEIS,Met Office,2024-01-12,06 ACCOMMODATION,CHIEF FINANCIAL OFFICER,SAFESTORE LTD,487598,3497.35,722887607
BEIS,Met Office,2024-01-10,06 ACCOMMODATION,CHIEF FINANCIAL OFFICER,Severn Trent Water Ltd,487454,24.6,486985565
BEIS,Met Office,2024-01-08,06 ACCOMMODATION,CHIEF FINANCIAL OFFICER,Severn Trent Water Ltd,487302,281.51,486985565
BEIS,Met Office,2024-01-03,06 ACCOMMODATION,CHIEF FINANCIAL OFFICER,SHARED ACCESS LTD,487091,7759.29,920672730
BEIS,Met Office,2024-01-17,06 ACCOMMODATION,CHIEF FINANCIAL OFFICER,SHETLAND CLEANING SERVICES,487762,831.13,430028404
BEIS,Met Office,2024-01-26,06 ACCOMMODATION,CHIEF FINANCIAL OFFICER,SIGNS EXPRESS (EXETER),488020,138.26,631397439
BEIS,Met Office,2024-01-08,06 ACCOMMODATION,CHIEF FINANCIAL OFFICER,South West Water Ltd,487150,46.4,236873674
BEIS,Met Office,2024-01-23,06 ACCOMMODATION,CHIEF FINANCIAL OFFICER,South West Water Ltd,487945,88.85,236873674
BEIS,Met Office,2024-01-12,06 ACCOMMODATION,CHIEF FINANCIAL OFFICER,South West Water Ltd,487534,467.84,236873674
BEIS,Met Office,2024-01-11,06 ACCOMMODATION,CHIEF FINANCIAL OFFICER,South West Water Ltd,487469,3839.55,236873674
BEIS,Met Office,2024-01-24,11 SERVICES,CHIEF FINANCIAL OFFICER,ST JOHN AMBULANCE,487973,165,564553916
BEIS,Met Office,2024-01-26,06 ACCOMMODATION,CHIEF FINANCIAL OFFICER,St. Modwen Properties Limited,488065,22.74,005489575
BEIS,Met Office,2024-01-17,06 ACCOMMODATION,CHIEF FINANCIAL OFFICER,St. Modwen Properties Limited,487737,62.9,005489575
BEIS,Met Office,2024-01-12,11 SERVICES,CHIEF FINANCIAL OFFICER,SURE SOUTH ATLANTIC LTD,487622,2124.59,NOVATREG
BEIS,Met Office,2024-01-12,11 SERVICES,CHIEF FINANCIAL OFFICER,SURE SOUTH ATLANTIC LTD,487600,4801,-
BEIS,Met Office,2024-01-12,11 SERVICES,CHIEF FINANCIAL OFFICER,SURE SOUTH ATLANTIC LTD,487601,6478,-
BEIS,Met Office,2024-01-17,11 SERVICES,CHIEF FINANCIAL OFFICER,SURE SOUTH ATLANTIC LTD (ST HELENA),487695,73.7,30005
BEIS,Met Office,2024-01-31,11 SERVICES,CHIEF FINANCIAL OFFICER,SWISSCOM (SCHWEIZ) AG,487533,101.46,-
BEIS,Met Office,2024-01-31,11 SERVICES,CHIEF FINANCIAL OFFICER,TELEFONICA O2 UK LIMITED,488166,-57.4,778603785
BEIS,Met Office,2024-01-17,11 SERVICES,CHIEF FINANCIAL OFFICER,TELEFONICA O2 UK LIMITED,487758,57.4,778603785
BEIS,Met Office,2024-01-31,11 SERVICES,CHIEF FINANCIAL OFFICER,TELEFONICA O2 UK LIMITED,488122,57.4,778603785
BEIS,Met Office,2024-01-31,11 SERVICES,CHIEF FINANCIAL OFFICER,TELEFONICA O2 UK LIMITED,488165,57.4,778603785
BEIS,Met Office,2024-01-10,11 SERVICES,CHIEF FINANCIAL OFFICER,TELEFONICA O2 UK LIMITED,487468,3356.37,778603785
BEIS,Met Office,2024-01-17,11 SERVICES,CHIEF FINANCIAL OFFICER,TELIA FINLAND OYJ,25573,226.07,FI14756079
BEIS,Met Office,2024-01-08,11 SERVICES,CHIEF FINANCIAL OFFICER,THE LANDSCAPE PARTNERSHIP LTD,487275,1283,440 8102 86
BEIS,Met Office,2024-01-30,11 SERVICES,CHIEF FINANCIAL OFFICER,THORLUX LIGHTING,488136,950.88,GB 109 939 440
BEIS,Met Office,2024-01-12,FIXTURE & FITTINGS,CHIEF FINANCIAL OFFICER,THORLUX LIGHTING,487443,14892.35,GB 109 939 440
BEIS,Met Office,2024-01-12,FIXTURE & FITTINGS,CHIEF FINANCIAL OFFICER,THORLUX LIGHTING,487442,34335.72,GB 109 939 440
BEIS,Met Office,2024-01-08,06 ACCOMMODATION,CHIEF FINANCIAL OFFICER,TOP RANK CLEANING SERVICES LTD,487271,1110.56,-
BEIS,Met Office,2024-01-17,06 ACCOMMODATION,CHIEF FINANCIAL OFFICER,TOTAL GAS & POWER LIMITED,487689,1340.91,689638949
BEIS,Met Office,2024-01-17,06 ACCOMMODATION,CHIEF FINANCIAL OFFICER,TOTAL GAS & POWER LIMITED,487688,19423.77,689638949
BEIS,Met Office,2024-01-08,06 ACCOMMODATION,CHIEF FINANCIAL OFFICER,UNIVERSAL CLEANING SERVICES,487295,186.44,-
BEIS,Met Office,2024-01-15,11 SERVICES,CHIEF FINANCIAL OFFICER,V P HOULIHAN LTD,487668,790,-
BEIS,Met Office,2024-01-08,11 SERVICES,CHIEF FINANCIAL OFFICER,VIRGIN MEDIA BUSINESS,487204,12285.14,591819014
BEIS,Met Office,2024-01-26,11 SERVICES,CHIEF FINANCIAL OFFICER,VIRGIN MEDIA BUSINESS,484007,19997.5,591819014
BEIS,Met Office,2024-01-08,11 SERVICES,CHIEF FINANCIAL OFFICER,VIRGIN MEDIA BUSINESS,486084,19997.5,591819014
BEIS,Met Office,2024-01-05,11 SERVICES,CHIEF FINANCIAL OFFICER,WEBEX COMMUNICATIONS UK LTD,487128,209.92,815974302
BEIS,Met Office,2024-01-29,11 SERVICES,CHIEF FINANCIAL OFFICER,WESTFIELD HEALTH & WELLBEING LTD,488013,3333,229171411
BEIS,Met Office,2024-01-05,06 ACCOMMODATION,CHIEF FINANCIAL OFFICER,WINGFIELD DIGBY SETTLED ESTATE,487172,2600,GB 930669020
BEIS,Met Office,2024-01-09,11 SERVICES,CHIEF FINANCIAL OFFICER,WOMBLE BOND DICKINSON (UK) LLP,487130,2940,GB123393627
BEIS,Met Office,2024-01-29,11 SERVICES,CHIEF FINANCIAL OFFICER,WOMBLE BOND DICKINSON (UK) LLP,488080,5880,GB123393627
BEIS,Met Office,2024-01-09,11 SERVICES,CHIEF FINANCIAL OFFICER,WOMBLE BOND DICKINSON (UK) LLP,487129,8075,GB123393627
BEIS,Met Office,2024-01-29,11 SERVICES,CHIEF FINANCIAL OFFICER,WOMBLE BOND DICKINSON (UK) LLP,488079,14450,GB123393627
BEIS,Met Office,2024-01-05,11 SERVICES,CHIEF FINANCIAL OFFICER,WT CONSULTANCY (SW) LTD,487210,1050,223 4662 25
BEIS,Met Office,2024-01-05,11 SERVICES,CHIEF FINANCIAL OFFICER,WT CONSULTANCY (SW) LTD,487209,18650,223 4662 25
BEIS,Met Office,2024-01-31,06 ACCOMMODATION,CHIEF FINANCIAL OFFICER,XEIAD,475584,-498.49,811321091
BEIS,Met Office,2024-01-31,06 ACCOMMODATION,CHIEF FINANCIAL OFFICER,XEIAD,488161,7362.22,811321091
BEIS,Met Office,2024-01-03,13 MISCELLANEOUS,MARKETS,ABERDEEN RENEWABLE ENERGY GROUP,486550,325,838939368
BEIS,Met Office,2024-01-03,13 MISCELLANEOUS,MARKETS,ABERDEEN RENEWABLE ENERGY GROUP,486551,385,838939368
BEIS,Met Office,2024-01-16,11 SERVICES,MARKETS,ACCELERATION EMARKETING,487593,5009.49,848940776
BEIS,Met Office,2024-01-05,11 SERVICES,MARKETS,ADOPSTAR,487269,1325,115036848
BEIS,Met Office,2024-01-03,06 ACCOMMODATION,MARKETS,ALEXANDRIA PATIENCE,487103,100,UTR: 6885284589
BEIS,Met Office,2024-01-03,06 ACCOMMODATION,MARKETS,ALEXANDRIA PATIENCE,487103,220,UTR: 6885284589
BEIS,Met Office,2024-01-08,12 INTERNATIONAL,MARKETS,APPLIED SATELLITE TECHNOLOGY SYSTEMS LTD,487286,33.82,720108683
BEIS,Met Office,2024-01-15,11 SERVICES,MARKETS,BJSS LIMITED,487550,1125,613295452
BEIS,Met Office,2024-01-19,11 SERVICES,MARKETS,BMG RESEARCH LTD,487802,8695,580 6606 32
BEIS,Met Office,2024-01-19,11 SERVICES,MARKETS,BMG RESEARCH LTD,487808,9820,580 6606 32
BEIS,Met Office,2024-01-16,11 SERVICES,MARKETS,BRYERS LLP,486769,462.5,609635917
BEIS,Met Office,2024-01-16,11 SERVICES,MARKETS,BRYERS LLP,486477,4005.26,609635917
BEIS,Met Office,2024-01-30,11 SERVICES,MARKETS,CABINET OFFICE - COF LEAD ACCOUNT,488145,140,-
BEIS,Met Office,2024-01-26,11 SERVICES,MARKETS,DJS RESEARCH LIMITED,487958,18500,775718779
BEIS,Met Office,2024-01-26,11 SERVICES,MARKETS,DJS RESEARCH LIMITED,488021,18937.5,775718779
BEIS,Met Office,2024-01-10,11 SERVICES,MARKETS,ECMWF,25432,-5511.23,NOTVATREG
BEIS,Met Office,2024-01-10,11 SERVICES,MARKETS,ECMWF,25458,102.74,NOTVATREG
BEIS,Met Office,2024-01-10,11 SERVICES,MARKETS,ECMWF,25453,152.65,NOTVATREG
BEIS,Met Office,2024-01-10,11 SERVICES,MARKETS,ECMWF,25447,157.09,NOTVATREG
BEIS,Met Office,2024-01-10,11 SERVICES,MARKETS,ECMWF,25465,157.09,NOTVATREG
BEIS,Met Office,2024-01-10,11 SERVICES,MARKETS,ECMWF,25441,161.61,NOTVATREG
BEIS,Met Office,2024-01-10,11 SERVICES,MARKETS,ECMWF,25473,185.28,NOTVATREG
BEIS,Met Office,2024-01-10,11 SERVICES,MARKETS,ECMWF,25461,199.29,NOTVATREG
BEIS,Met Office,2024-01-10,11 SERVICES,MARKETS,ECMWF,25440,326.45,NOTVATREG
BEIS,Met Office,2024-01-10,11 SERVICES,MARKETS,ECMWF,25446,335.6,NOTVATREG
BEIS,Met Office,2024-01-10,11 SERVICES,MARKETS,ECMWF,25421,344.43,NOTVATREG
BEIS,Met Office,2024-01-10,11 SERVICES,MARKETS,ECMWF,25428,344.43,NOTVATREG
BEIS,Met Office,2024-01-10,11 SERVICES,MARKETS,ECMWF,25433,346.25,NOTVATREG
BEIS,Met Office,2024-01-10,11 SERVICES,MARKETS,ECMWF,25442,463.18,NOTVATREG
BEIS,Met Office,2024-01-10,11 SERVICES,MARKETS,ECMWF,25435,474.15,NOTVATREG
BEIS,Met Office,2024-01-10,11 SERVICES,MARKETS,ECMWF,25420,521,NOTVATREG
BEIS,Met Office,2024-01-10,11 SERVICES,MARKETS,ECMWF,25451,628.52,NOTVATREG
BEIS,Met Office,2024-01-10,11 SERVICES,MARKETS,ECMWF,25436,677.75,NOTVATREG
BEIS,Met Office,2024-01-10,11 SERVICES,MARKETS,ECMWF,25460,677.75,NOTVATREG
BEIS,Met Office,2024-01-10,11 SERVICES,MARKETS,ECMWF,25470,1369.56,NOTVATREG
BEIS,Met Office,2024-01-10,11 SERVICES,MARKETS,ECMWF,25422,1517.56,NOTVATREG
BEIS,Met Office,2024-01-10,11 SERVICES,MARKETS,ECMWF,25418,1536.05,NOTVATREG
BEIS,Met Office,2024-01-10,11 SERVICES,MARKETS,ECMWF,25466,1566.08,NOTVATREG
BEIS,Met Office,2024-01-10,11 SERVICES,MARKETS,ECMWF,25424,1719.1,NOTVATREG
BEIS,Met Office,2024-01-10,11 SERVICES,MARKETS,ECMWF,25434,2006.27,NOTVATREG
BEIS,Met Office,2024-01-10,11 SERVICES,MARKETS,ECMWF,25464,2154.87,NOTVATREG
BEIS,Met Office,2024-01-10,11 SERVICES,MARKETS,ECMWF,25467,2874.35,NOTVATREG
BEIS,Met Office,2024-01-10,11 SERVICES,MARKETS,ECMWF,25471,3124.86,NOTVATREG
BEIS,Met Office,2024-01-10,11 SERVICES,MARKETS,ECMWF,25431,3917.2,NOTVATREG
BEIS,Met Office,2024-01-10,11 SERVICES,MARKETS,ECMWF,25456,4428.28,NOTVATREG
BEIS,Met Office,2024-01-10,11 SERVICES,MARKETS,ECMWF,25438,4429.81,NOTVATREG
BEIS,Met Office,2024-01-10,11 SERVICES,MARKETS,ECMWF,25439,4911.18,NOTVATREG
BEIS,Met Office,2024-01-10,11 SERVICES,MARKETS,ECMWF,25437,5356.29,NOTVATREG
BEIS,Met Office,2024-01-10,11 SERVICES,MARKETS,ECMWF,25233,5566.56,NOTVATREG
BEIS,Met Office,2024-01-10,11 SERVICES,MARKETS,ECMWF,25417,5701.97,NOTVATREG
BEIS,Met Office,2024-01-10,11 SERVICES,MARKETS,ECMWF,25469,9781.82,NOTVATREG
BEIS,Met Office,2024-01-10,11 SERVICES,MARKETS,ECMWF,25462,12131.2,NOTVATREG
BEIS,Met Office,2024-01-10,11 SERVICES,MARKETS,ECMWF,25445,16666.92,NOTVATREG
BEIS,Met Office,2024-01-10,11 SERVICES,MARKETS,ECMWF,25468,17838.13,NOTVATREG
BEIS,Met Office,2024-01-10,11 SERVICES,MARKETS,ECMWF,25459,18629.51,NOTVATREG
BEIS,Met Office,2024-01-10,11 SERVICES,MARKETS,ECMWF,25450,21734.79,NOTVATREG
BEIS,Met Office,2024-01-10,11 SERVICES,MARKETS,ECMWF,25474,21734.79,NOTVATREG
BEIS,Met Office,2024-01-10,11 SERVICES,MARKETS,ECMWF,25455,24761.88,NOTVATREG
BEIS,Met Office,2024-01-10,11 SERVICES,MARKETS,ECMWF,25463,28822.23,NOTVATREG
BEIS,Met Office,2024-01-10,11 SERVICES,MARKETS,ECMWF,25426,29869.2,NOTVATREG
BEIS,Met Office,2024-01-10,11 SERVICES,MARKETS,ECMWF,25444,29869.2,NOTVATREG
BEIS,Met Office,2024-01-10,11 SERVICES,MARKETS,ECMWF,25423,31160.37,NOTVATREG
BEIS,Met Office,2024-01-10,11 SERVICES,MARKETS,ECMWF,25425,31160.37,NOTVATREG
BEIS,Met Office,2024-01-10,11 SERVICES,MARKETS,ECMWF,25429,31160.37,NOTVATREG
BEIS,Met Office,2024-01-10,11 SERVICES,MARKETS,ECMWF,25430,31160.37,NOTVATREG
BEIS,Met Office,2024-01-10,11 SERVICES,MARKETS,ECMWF,25449,31160.37,NOTVATREG
BEIS,Met Office,2024-01-10,11 SERVICES,MARKETS,ECMWF,25452,31160.37,NOTVATREG
BEIS,Met Office,2024-01-10,11 SERVICES,MARKETS,ECMWF,25472,31160.37,NOTVATREG
BEIS,Met Office,2024-01-10,11 SERVICES,MARKETS,ECMWF,25448,36002.28,NOTVATREG
BEIS,Met Office,2024-01-10,11 SERVICES,MARKETS,ECMWF,25457,43469.58,NOTVATREG
BEIS,Met Office,2024-01-10,11 SERVICES,MARKETS,ECMWF,25427,48311.49,NOTVATREG
BEIS,Met Office,2024-01-10,11 SERVICES,MARKETS,ECMWF,25419,49064.67,NOTVATREG
BEIS,Met Office,2024-01-10,11 SERVICES,MARKETS,ECMWF,25443,53906.58,NOTVATREG
BEIS,Met Office,2024-01-10,11 SERVICES,MARKETS,ECMWF,25454,55792.05,NOTVATREG
BEIS,Met Office,2024-01-10,12 INTERNATIONAL,MARKETS,EUMETNET - EIG,25414,825986.38,-
BEIS,Met Office,2024-01-05,12 INTERNATIONAL,MARKETS,FOXSTONES TRAINING AND LEARNING,487242,2950,-
BEIS,Met Office,2024-01-10,07 EQUIPMENT,MARKETS,GRIMM AEROSOL TECHNIK GMBH & CO KG,25395,1408.95,DE128993085
BEIS,Met Office,2024-01-10,11 SERVICES,MARKETS,HAZEL MOSLEY,487524,780,-
BEIS,Met Office,2024-01-16,11 SERVICES,MARKETS,Health & Safety Laboratory,487677,24217,888810177
BEIS,Met Office,2024-01-25,11 SERVICES,MARKETS,HOPKINS VAN MIL (HVM),487986,16618,857628578
BEIS,Met Office,2024-01-10,08 SOFTWARE LICENCES,MARKETS,"IBL SOFTWARE ENGINEERING, SPOL S.R.O.",25416,808.28,SK2020241883
BEIS,Met Office,2024-01-17,08 SOFTWARE LICENCES,MARKETS,"IBL SOFTWARE ENGINEERING, SPOL S.R.O.",25545,1091.47,SK2020241883
BEIS,Met Office,2024-01-24,11 SERVICES,MARKETS,"IBL SOFTWARE ENGINEERING, SPOL S.R.O.",487115,2843.22,SK2020241883
BEIS,Met Office,2024-01-17,08 SOFTWARE LICENCES,MARKETS,"IBL SOFTWARE ENGINEERING, SPOL S.R.O.",25545,5479.75,SK2020241883
BEIS,Met Office,2024-01-24,11 SERVICES,MARKETS,"IBL SOFTWARE ENGINEERING, SPOL S.R.O.",25549,8099.11,SK2020241883
BEIS,Met Office,2024-01-24,11 SERVICES,MARKETS,"IBL SOFTWARE ENGINEERING, SPOL S.R.O.",487755,8236.33,SK2020241883
BEIS,Met Office,2024-01-17,08 SOFTWARE LICENCES,MARKETS,"IBL SOFTWARE ENGINEERING, SPOL S.R.O.",25545,8256.64,SK2020241883
BEIS,Met Office,2024-01-17,08 SOFTWARE LICENCES,MARKETS,"IBL SOFTWARE ENGINEERING, SPOL S.R.O.",25545,10902.69,SK2020241883
BEIS,Met Office,2024-01-17,08 SOFTWARE LICENCES,MARKETS,"IBL SOFTWARE ENGINEERING, SPOL S.R.O.",25545,20763.83,SK2020241883
BEIS,Met Office,2024-01-24,11 SERVICES,MARKETS,"IBL SOFTWARE ENGINEERING, SPOL S.R.O.",25549,22246.68,SK2020241883
BEIS,Met Office,2024-01-17,08 SOFTWARE LICENCES,MARKETS,"IBL SOFTWARE ENGINEERING, SPOL S.R.O.",25545,54785.44,SK2020241883
BEIS,Met Office,2024-01-17,08 SOFTWARE LICENCES,MARKETS,"IBL SOFTWARE ENGINEERING, SPOL S.R.O.",25545,54785.44,SK2020241883
BEIS,Met Office,2024-01-17,08 SOFTWARE LICENCES,MARKETS,"IBL SOFTWARE ENGINEERING, SPOL S.R.O.",25545,82550.88,SK2020241883
BEIS,Met Office,2024-01-19,12 INTERNATIONAL,MARKETS,IDEMS INTERNATIONAL COMMUNITY INTEREST CO,487620,11793.36,-
BEIS,Met Office,2024-01-16,12 INTERNATIONAL,MARKETS,IDEMS INTERNATIONAL COMMUNITY INTEREST CO,487594,12930.95,-
BEIS,Met Office,2024-01-16,12 INTERNATIONAL,MARKETS,IDEMS INTERNATIONAL COMMUNITY INTEREST CO,487594,17605.56,-
BEIS,Met Office,2024-01-05,11 SERVICES,MARKETS,INMARSAT SOLUTIONS (CANADA) INC,487255,2092.64,766144223
BEIS,Met Office,2024-01-29,PLANT AND EQUIPMENT,MARKETS,Lancaster University,488048,50991.09,604609849
BEIS,Met Office,2024-01-17,12 INTERNATIONAL,MARKETS,MACITECHSY SOLUTIONS,487523,740,-
BEIS,Met Office,2024-01-03,12 INTERNATIONAL,MARKETS,MACITECHSY SOLUTIONS,487050,987,-
BEIS,Met Office,2024-01-03,12 INTERNATIONAL,MARKETS,MACITECHSY SOLUTIONS,487050,1850,-
BEIS,Met Office,2024-01-09,11 SERVICES,MARKETS,MADE TECH,487445,14250,938565184
BEIS,Met Office,2024-01-10,12 INTERNATIONAL,MARKETS,MARCELLIN HABIMANA,11358,2875.46,-
BEIS,Met Office,2024-01-17,11 SERVICES,MARKETS,MCENIES GLOBAL COMMUNICATIONS LIMITED,487595,18856.5,18980736-0001
BEIS,Met Office,2024-01-31,11 SERVICES,MARKETS,METEO-FRANCE CNRM,25597,4135.94,-
BEIS,Met Office,2024-01-17,11 SERVICES,MARKETS,NSSL GLOBAL LTD,11349,43.33,725151948
BEIS,Met Office,2024-01-31,11 SERVICES,MARKETS,PARLIAMENTARY & SCIENTIFIC COMMITTEE,488188,250,-
BEIS,Met Office,2024-01-31,11 SERVICES,MARKETS,PARLIAMENTARY & SCIENTIFIC COMMITTEE,488187,422,-
BEIS,Met Office,2024-01-03,11 SERVICES,MARKETS,PLOUGHSHARE INNOVATIONS,487085,12000,878305296
BEIS,Met Office,2024-01-03,11 SERVICES,MARKETS,PLOUGHSHARE INNOVATIONS,487086,12000,878305296
BEIS,Met Office,2024-01-03,11 SERVICES,MARKETS,PLOUGHSHARE INNOVATIONS,487087,12000,878305296
BEIS,Met Office,2024-01-03,11 SERVICES,MARKETS,PLOUGHSHARE INNOVATIONS,487088,12000,878305296
BEIS,Met Office,2024-01-10,11 SERVICES,MARKETS,PLOUGHSHARE INNOVATIONS,487483,12710.42,878305296
BEIS,Met Office,2024-01-05,06 ACCOMMODATION,MARKETS,RESPECT CREMATORIA LTD,487134,35,-
BEIS,Met Office,2024-01-05,06 ACCOMMODATION,MARKETS,RESPECT CREMATORIA LTD,487134,200,-
BEIS,Met Office,2024-01-15,11 SERVICES,MARKETS,ROWE IT LTD,487477,1337.79,924964394
BEIS,Met Office,2024-01-10,11 SERVICES,MARKETS,ROWE IT LTD,487532,35386.25,924964394
BEIS,Met Office,2024-01-16,11 SERVICES,MARKETS,RUSSELL DIGITAL CONSULTANCY LIMITED,486032,9000,N/A
BEIS,Met Office,2024-01-08,11 SERVICES,MARKETS,SOFTWIRE TECHNOLOGY LIMITED,487282,19740,752 1253 57
BEIS,Met Office,2024-01-05,11 SERVICES,MARKETS,SPOKE (INTERACTIVE) LTD,487280,770,840156451
BEIS,Met Office,2024-01-24,12 INTERNATIONAL,MARKETS,SPREP,11386,40131.35,-
BEIS,Met Office,2024-01-08,11 SERVICES,MARKETS,SWANTECH LOGISTICS LTD,476194,240,769332401
BEIS,Met Office,2024-01-11,11 SERVICES,MARKETS,SWANTECH LOGISTICS LTD,487447,1080,769332401
BEIS,Met Office,2024-01-09,11 SERVICES,MARKETS,SWANTECH LOGISTICS LTD,483211,1140,769332401
BEIS,Met Office,2024-01-09,11 SERVICES,MARKETS,SWANTECH LOGISTICS LTD,482447,1200,769332401
BEIS,Met Office,2024-01-11,11 SERVICES,MARKETS,SWANTECH LOGISTICS LTD,487449,1560,769332401
BEIS,Met Office,2024-01-11,11 SERVICES,MARKETS,SWANTECH LOGISTICS LTD,487446,2160,769332401
BEIS,Met Office,2024-01-09,11 SERVICES,MARKETS,SWANTECH LOGISTICS LTD,483210,2280,769332401
BEIS,Met Office,2024-01-11,11 SERVICES,MARKETS,SWANTECH LOGISTICS LTD,487448,3120,769332401
BEIS,Met Office,2024-01-12,11 SERVICES,MARKETS,SWANTECH LOGISTICS LTD,487439,4919.28,769332401
BEIS,Met Office,2024-01-29,11 SERVICES,MARKETS,Thames Water,486466,22659,-
BEIS,Met Office,2024-01-10,12 INTERNATIONAL,MARKETS,TOTEX CORPORATION,483839,24.7,-
BEIS,Met Office,2024-01-10,12 INTERNATIONAL,MARKETS,TOTEX CORPORATION,483839,590,-
BEIS,Met Office,2024-01-10,12 INTERNATIONAL,MARKETS,TOTEX CORPORATION,483839,3560,-
BEIS,Met Office,2024-01-05,11 SERVICES,MARKETS,WORLDPAY LTD,487254,24.65,991280207
BEIS,Met Office,2024-01-10,11 SERVICES,MARKETS,WORLDPAY LTD,487535,331.13,991280207
BEIS,Met Office,2024-01-19,11 SERVICES,OFFICE OF THE CEO,EXETER RUGBY CLUB LTD,487899,4986.88,918551313
BEIS,Met Office,2024-01-26,13 MISCELLANEOUS,OFFICE OF THE CEO,FOUNDATION FOR SCIENCE & TECHNOLOGY,487696,3380,447089719
BEIS,Met Office,2024-01-18,PAYE AND VAT,OTHER,AVIVA INSURANCE UK LIMITED,487811,0,105 437 300
BEIS,Met Office,2024-01-24,PAYE AND VAT,OTHER,AVIVA INSURANCE UK LIMITED,487812,0,105 437 300
BEIS,Met Office,2024-01-12,PAYE AND VAT,OTHER,DHL INTERNATIONAL (UK) LTD,487632,430.46,751812341
BEIS,Met Office,2024-01-09,CYCLESCHEME,OTHER,EDENRED UK (CYCLESCHEME),487433,2051.65,649 503 520
BEIS,Met Office,2024-01-29,PAYE AND VAT,OTHER,HMRC,488064,4330647.23,-
BEIS,Met Office,2024-01-22,TRADE CREDITORS,OTHER,NATWEST COMMERCIAL CARDS DIVISION,487903,113564.66,N/A
BEIS,Met Office,2024-01-19,11 SERVICES,PEOPLE,ACTIVE LEARNING TEAM LTD,487874,700,-
BEIS,Met Office,2024-01-25,11 SERVICES,PEOPLE,ACTIVE LEARNING TEAM LTD,488018,1567.95,-
BEIS,Met Office,2024-01-05,08 SOFTWARE LICENCES,PEOPLE,CATALYST IT,487238,2270.82,978169262
BEIS,Met Office,2024-01-12,11 SERVICES,PEOPLE,CIVICA UK LIMITED,487624,7503.5,391171065
BEIS,Met Office,2024-01-05,13 MISCELLANEOUS,PEOPLE,EDENRED - CHILDCARE VOUCHERS,487202,8286.5,649 503 520
BEIS,Met Office,2024-01-08,13 MISCELLANEOUS,PEOPLE,EDENRED I&M (IRS VOUCHERS),487239,76938.6,649 503 520
BEIS,Met Office,2024-01-11,11 SERVICES,PEOPLE,FOOT ANSTEY LLP,487511,825,143043312
BEIS,Met Office,2024-01-11,11 SERVICES,PEOPLE,FOOT ANSTEY LLP,487512,825,143043312
BEIS,Met Office,2024-01-12,11 SERVICES,PEOPLE,FOOT ANSTEY LLP,487513,825,143043312
BEIS,Met Office,2024-01-31,11 SERVICES,PEOPLE,FOOT ANSTEY LLP,488058,825,143043312
BEIS,Met Office,2024-01-22,11 SERVICES,PEOPLE,FOOT ANSTEY LLP,487479,900,143043312
BEIS,Met Office,2024-01-23,11 SERVICES,PEOPLE,FOOT ANSTEY LLP,487813,5156.5,143043312
BEIS,Met Office,2024-01-22,11 SERVICES,PEOPLE,FOOT ANSTEY LLP,487814,5975,143043312
BEIS,Met Office,2024-01-22,11 SERVICES,PEOPLE,FOOT ANSTEY LLP,487817,8539.6,143043312
BEIS,Met Office,2024-01-22,11 SERVICES,PEOPLE,FOOT ANSTEY LLP,487819,11396,143043312
BEIS,Met Office,2024-01-09,11 SERVICES,PEOPLE,HEALTH ASSURED LIMITED,487283,1120,927 5242 17
BEIS,Met Office,2024-01-09,04 CONTRACTORS,PEOPLE,MATRIX SCM LIMITED,487279,63139.6,249 5734 68
BEIS,Met Office,2024-01-05,04 CONTRACTORS,PEOPLE,MATRIX SCM LIMITED,487167,173830.03,249 5734 68
BEIS,Met Office,2024-01-25,04 CONTRACTORS,PEOPLE,MATRIX SCM LIMITED,488042,210582.12,249 5734 68
BEIS,Met Office,2024-01-12,04 CONTRACTORS,PEOPLE,MATRIX SCM LIMITED,487619,218229.55,249 5734 68
BEIS,Met Office,2024-01-18,04 CONTRACTORS,PEOPLE,MATRIX SCM LIMITED,487835,231381.4,249 5734 68
BEIS,Met Office,2024-01-05,04 CONTRACTORS,PEOPLE,MATRIX SCM LIMITED,487092,244142.47,249 5734 68
BEIS,Met Office,2024-01-31,04 CONTRACTORS,PEOPLE,MATRIX SCM LIMITED,488189,252882.13,249 5734 68
BEIS,Met Office,2024-01-30,11 SERVICES,PEOPLE,MOMENTUM INCORPORATED,488076,6660,598958541
BEIS,Met Office,2024-01-30,11 SERVICES,PEOPLE,MOMENTUM INCORPORATED,488077,6660,598958541
BEIS,Met Office,2024-01-30,11 SERVICES,PEOPLE,MOMENTUM INCORPORATED,488074,13320,598958541
BEIS,Met Office,2024-01-08,11 SERVICES,PEOPLE,MYCSP LTD,487216,1800,128754393
BEIS,Met Office,2024-01-10,11 SERVICES,PEOPLE,PLURALSIGHT,11325,4009.75,EU826020045
BEIS,Met Office,2024-01-10,11 SERVICES,PEOPLE,PLURALSIGHT,11202,14557.92,EU826020045
BEIS,Met Office,2024-01-22,11 SERVICES,PEOPLE,RESTORE RECORDS MANAGEMENT,487480,13.89,843 863011
BEIS,Met Office,2024-01-22,11 SERVICES,PEOPLE,RESULTS CATALYSTS LTD,487950,1200,811 9181 42
BEIS,Met Office,2024-01-23,11 SERVICES,PEOPLE,SOURCE COACHING CONSULTANCY,487989,1775,170422048
BEIS,Met Office,2024-01-09,11 SERVICES,PEOPLE,SPRINGPOD / THE EDUCATION HUB GROUP LTD,487122,19125,GB287276850
BEIS,Met Office,2024-01-09,11 SERVICES,PEOPLE,SWANTECH LOGISTICS LTD,476333,-900,769332401
BEIS,Met Office,2024-01-09,11 SERVICES,PEOPLE,SWANTECH LOGISTICS LTD,476192,900,769332401
BEIS,Met Office,2024-01-15,11 SERVICES,PEOPLE,SWANTECH LOGISTICS LTD,482145,900,769332401
BEIS,Met Office,2024-01-31,11 SERVICES,PEOPLE,TOTAL CONFLICT MANAGEMENT LTD,488078,4400,786749261
BEIS,Met Office,2024-01-05,11 SERVICES,PEOPLE,TP HEALTH LTD,487219,650,883064608
BEIS,Met Office,2024-01-09,11 SERVICES,PEOPLE,TP HEALTH LTD,487264,892,883064608
BEIS,Met Office,2024-01-05,11 SERVICES,PEOPLE,TP HEALTH LTD,487079,1105,883064608
BEIS,Met Office,2024-01-05,11 SERVICES,PEOPLE,TP HEALTH LTD,487078,1787.5,883064608
BEIS,Met Office,2024-01-05,11 SERVICES,PEOPLE,TP HEALTH LTD,487220,2009.8,883064608
BEIS,Met Office,2024-01-26,11 SERVICES,PEOPLE,TRAINING BYTESIZE LIMITED,488029,9310,901277743
BEIS,Met Office,2024-01-31,11 SERVICES,PEOPLE,UNIFROG,488156,3900,160485806
BEIS,Met Office,2024-01-09,13 MISCELLANEOUS,PEOPLE,YOTI LTD,487277,10.8,GB199947617
BEIS,Met Office,2024-01-10,11 SERVICES,PROGRAMMES,BAE SYSTEMS APPLIED INTELLIGENCE LIMITED,486902,1085.26,GB641407169
BEIS,Met Office,2024-01-11,11 SERVICES,PROGRAMMES,BAE SYSTEMS APPLIED INTELLIGENCE LIMITED,487542,1542.78,GB641407169
BEIS,Met Office,2024-01-11,11 SERVICES,PROGRAMMES,BAE SYSTEMS APPLIED INTELLIGENCE LIMITED,487545,7504,GB641407169
BEIS,Met Office,2024-01-11,11 SERVICES,PROGRAMMES,BAE SYSTEMS APPLIED INTELLIGENCE LIMITED,487545,8115,GB641407169
BEIS,Met Office,2024-01-11,11 SERVICES,PROGRAMMES,BAE SYSTEMS APPLIED INTELLIGENCE LIMITED,487545,8550,GB641407169
BEIS,Met Office,2024-01-11,11 SERVICES,PROGRAMMES,BAE SYSTEMS APPLIED INTELLIGENCE LIMITED,487545,11256,GB641407169
BEIS,Met Office,2024-01-11,11 SERVICES,PROGRAMMES,BAE SYSTEMS APPLIED INTELLIGENCE LIMITED,487545,13200,GB641407169
BEIS,Met Office,2024-01-16,11 SERVICES,PROGRAMMES,BAE SYSTEMS APPLIED INTELLIGENCE LIMITED,487667,17247.75,GB641407169
BEIS,Met Office,2024-01-11,11 SERVICES,PROGRAMMES,BAE SYSTEMS APPLIED INTELLIGENCE LIMITED,487545,17445,GB641407169
BEIS,Met Office,2024-01-11,11 SERVICES,PROGRAMMES,BAE SYSTEMS APPLIED INTELLIGENCE LIMITED,487545,17822,GB641407169
BEIS,Met Office,2024-01-11,11 SERVICES,PROGRAMMES,BAE SYSTEMS APPLIED INTELLIGENCE LIMITED,487545,17822,GB641407169
BEIS,Met Office,2024-01-11,11 SERVICES,PROGRAMMES,BAE SYSTEMS APPLIED INTELLIGENCE LIMITED,487545,18408.25,GB641407169
BEIS,Met Office,2024-01-11,11 SERVICES,PROGRAMMES,BAE SYSTEMS APPLIED INTELLIGENCE LIMITED,487545,18608,GB641407169
BEIS,Met Office,2024-01-11,11 SERVICES,PROGRAMMES,BAE SYSTEMS APPLIED INTELLIGENCE LIMITED,487544,18760,GB641407169
BEIS,Met Office,2024-01-11,11 SERVICES,PROGRAMMES,BAE SYSTEMS APPLIED INTELLIGENCE LIMITED,487545,18760,GB641407169
BEIS,Met Office,2024-01-11,11 SERVICES,PROGRAMMES,BAE SYSTEMS APPLIED INTELLIGENCE LIMITED,487545,18760,GB641407169
BEIS,Met Office,2024-01-11,11 SERVICES,PROGRAMMES,BAE SYSTEMS APPLIED INTELLIGENCE LIMITED,487545,22097,GB641407169
BEIS,Met Office,2024-01-11,11 SERVICES,PROGRAMMES,BAE SYSTEMS APPLIED INTELLIGENCE LIMITED,487545,24004,GB641407169
BEIS,Met Office,2024-01-16,11 SERVICES,PROGRAMMES,BAE SYSTEMS APPLIED INTELLIGENCE LIMITED,487666,37279.56,GB641407169
BEIS,Met Office,2024-01-15,11 SERVICES,PROGRAMMES,BJSS LIMITED,487616,0.25,613295452
BEIS,Met Office,2024-01-15,11 SERVICES,PROGRAMMES,BJSS LIMITED,487548,11562.5,613295452
BEIS,Met Office,2024-01-15,11 SERVICES,PROGRAMMES,BJSS LIMITED,487549,15000,613295452
BEIS,Met Office,2024-01-12,11 SERVICES,PROGRAMMES,BJSS LIMITED,487591,29300,613295452
BEIS,Met Office,2024-01-15,11 SERVICES,PROGRAMMES,BJSS LIMITED,487615,32868.75,613295452
BEIS,Met Office,2024-01-15,11 SERVICES,PROGRAMMES,BJSS LIMITED,487616,47581,613295452
BEIS,Met Office,2024-01-16,11 SERVICES,PROGRAMMES,BJSS LIMITED,487617,57400,613295452
BEIS,Met Office,2024-01-15,11 SERVICES,PROGRAMMES,BJSS LIMITED,487675,69131.25,613295452
BEIS,Met Office,2024-01-09,11 SERVICES,PROGRAMMES,Cgi It Uk Limited,487253,28588,232615194
BEIS,Met Office,2024-01-09,11 SERVICES,PROGRAMMES,Cgi It Uk Limited,487250,37693,232615194
BEIS,Met Office,2024-01-09,11 SERVICES,PROGRAMMES,Cgi It Uk Limited,487251,79239,232615194
BEIS,Met Office,2024-01-31,11 SERVICES,PROGRAMMES,Dstl,488160,902.55,888805166
BEIS,Met Office,2024-01-31,11 SERVICES,PROGRAMMES,Dstl,488157,1394.75,888805166
BEIS,Met Office,2024-01-31,11 SERVICES,PROGRAMMES,Dstl,488158,2326.15,888805166
BEIS,Met Office,2024-01-31,11 SERVICES,PROGRAMMES,Dstl,488159,3290,888805166
BEIS,Met Office,2024-01-31,13 MISCELLANEOUS,PROGRAMMES,ELSEVIER B.V.,487151,6110,NL00503301980
BEIS,Met Office,2024-01-11,11 SERVICES,PROGRAMMES,GREAT PLACE TO WORK UK LTD,487268,22595,894277473
BEIS,Met Office,2024-01-24,11 SERVICES,PROGRAMMES,"IBL SOFTWARE ENGINEERING, SPOL S.R.O.",487114,4622.9,SK2020241883
BEIS,Met Office,2024-01-17,11 SERVICES,PROGRAMMES,"IBL SOFTWARE ENGINEERING, SPOL S.R.O.",487046,239910,SK2020241883
BEIS,Met Office,2024-01-05,11 SERVICES,PROGRAMMES,Ibm United Kingdom Ltd,487207,13440.5,107328000
BEIS,Met Office,2024-01-10,11 SERVICES,PROGRAMMES,IGAD CLIMATE PREDICTION & APPLICATIONS CNTR,487138,45092.74,-
BEIS,Met Office,2024-01-03,11 SERVICES,PROGRAMMES,INTERNATIONAL WATER MANAGEMENT INSTITUTE,485010,6555,-
BEIS,Met Office,2024-01-24,11 SERVICES,PROGRAMMES,Knmi,25526,151746.7,821693992B01
BEIS,Met Office,2024-01-17,11 SERVICES,PROGRAMMES,LUTRA CONSULTING,487784,15750,142463822
BEIS,Met Office,2024-01-10,11 SERVICES,PROGRAMMES,MADE TECH,487436,13710.71,938565184
BEIS,Met Office,2024-01-15,08 SOFTWARE LICENCES,PROGRAMMES,MICRO FOCUS SOFTWARE UK LTD,487482,458.04,GB 275 5061 96
BEIS,Met Office,2024-01-03,06 ACCOMMODATION,PROGRAMMES,MR T V JONES,487102,6000,-
BEIS,Met Office,2024-01-31,11 SERVICES,PROGRAMMES,NORWEGIAN REFUGEE COUNCIL,487175,33276.6,-
BEIS,Met Office,2024-01-22,11 SERVICES,PROGRAMMES,Npl Management Ltd,487911,25000,207523388
BEIS,Met Office,2024-01-16,11 SERVICES,PROGRAMMES,OFFICE OF NATIONAL STATISTICS,487508,300,888 846 049
BEIS,Met Office,2024-01-31,11 SERVICES,PROGRAMMES,OVERSEAS DEVELOPMENT INSTITUTE,488199,23210.25,187462962
BEIS,Met Office,2024-01-31,11 SERVICES,PROGRAMMES,OVERSEAS DEVELOPMENT INSTITUTE,488200,23210.25,187462962
BEIS,Met Office,2024-01-19,PLANT AND EQUIPMENT,PROGRAMMES,PZ&W LTD,487525,2152,684 6795 68
BEIS,Met Office,2024-01-19,PLANT AND EQUIPMENT,PROGRAMMES,PZ&W LTD,487525,2152,684 6795 68
BEIS,Met Office,2024-01-19,PLANT AND EQUIPMENT,PROGRAMMES,PZ&W LTD,487525,11246,684 6795 68
BEIS,Met Office,2024-01-05,PLANT AND EQUIPMENT,PROGRAMMES,PZ&W LTD,487094,31969,684 6795 68
BEIS,Met Office,2024-01-03,11 SERVICES,PROGRAMMES,RAINMAKER SOLUTIONS LTD,486681,462.15,-
BEIS,Met Office,2024-01-03,11 SERVICES,PROGRAMMES,RAINMAKER SOLUTIONS LTD,486681,13625,-
BEIS,Met Office,2024-01-24,11 SERVICES,PROGRAMMES,Red Cross Red Crescent Climate Centre,487946,8739.31,N/A
BEIS,Met Office,2024-01-24,11 SERVICES,PROGRAMMES,Red Cross Red Crescent Climate Centre,487946,15000,N/A
BEIS,Met Office,2024-01-15,11 SERVICES,PROGRAMMES,ROWE IT LTD,487477,668.89,924964394
BEIS,Met Office,2024-01-11,11 SERVICES,PROGRAMMES,ROWE IT LTD,487476,1498,924964394
BEIS,Met Office,2024-01-15,11 SERVICES,PROGRAMMES,ROWE IT LTD,487477,2006.68,924964394
BEIS,Met Office,2024-01-11,11 SERVICES,PROGRAMMES,ROWE IT LTD,487476,3295.6,924964394
BEIS,Met Office,2024-01-11,11 SERVICES,PROGRAMMES,ROWE IT LTD,487476,3295.6,924964394
BEIS,Met Office,2024-01-15,11 SERVICES,PROGRAMMES,ROWE IT LTD,487477,7692.28,924964394
BEIS,Met Office,2024-01-15,11 SERVICES,PROGRAMMES,ROWE IT LTD,487477,9364.52,924964394
BEIS,Met Office,2024-01-11,11 SERVICES,PROGRAMMES,ROWE IT LTD,487476,9587.2,924964394
BEIS,Met Office,2024-01-05,11 SERVICES,PROGRAMMES,ROWE IT LTD,487240,12000,924964394
BEIS,Met Office,2024-01-11,11 SERVICES,PROGRAMMES,ROWE IT LTD,487476,12283.6,924964394
BEIS,Met Office,2024-01-15,11 SERVICES,PROGRAMMES,ROWE IT LTD,487477,23411.29,924964394
BEIS,Met Office,2024-01-15,11 SERVICES,PROGRAMMES,ROWE IT LTD,487477,28093.55,924964394
BEIS,Met Office,2024-01-10,11 SERVICES,PROGRAMMES,ROWE IT LTD,487537,62112.5,924964394
BEIS,Met Office,2024-01-31,13 MISCELLANEOUS,PROGRAMMES,ROYAL MET SOCIETY,488186,100,-
BEIS,Met Office,2024-01-05,11 SERVICES,PROGRAMMES,SERVICENOW UK LTD.,487168,729,-
BEIS,Met Office,2024-01-25,11 SERVICES,PROGRAMMES,SOUTH AFRICAN WEATHER SERVICES,487473,19736,-
BEIS,Met Office,2024-01-22,08 SOFTWARE LICENCES,PROGRAMMES,SPECIALIST COMPUTER CENTRES,487806,1079.23,313651680
BEIS,Met Office,2024-01-22,08 SOFTWARE LICENCES,PROGRAMMES,SPECIALIST COMPUTER CENTRES,487806,5481.6,313651680
BEIS,Met Office,2024-01-24,11 SERVICES,PROGRAMMES,Tanzania Meteorological Agency,487966,100000,-
BEIS,Met Office,2024-01-03,11 SERVICES,PROGRAMMES,UCAR INCOMING PAYMENTS,11340,6104.1,-
BEIS,Met Office,2024-01-31,11 SERVICES,PROGRAMMES,UCAR INCOMING PAYMENTS,11368,13852.32,-
BEIS,Met Office,2024-01-16,11 SERVICES,PROGRAMMES,University Of Bristol,487760,4665,991261800
BEIS,Met Office,2024-01-18,11 SERVICES,PROGRAMMES,University Of Cambridge,487699,36843,214222124
BEIS,Met Office,2024-01-16,11 SERVICES,PROGRAMMES,University Of Leeds,487703,12500,613451470
BEIS,Met Office,2024-01-23,11 SERVICES,PROGRAMMES,University Of Oxford,487974,50842.36,125506730
BEIS,Met Office,2024-01-23,11 SERVICES,PROGRAMMES,University Of Reading,432246,-16365.66,200012659
BEIS,Met Office,2024-01-10,11 SERVICES,PROGRAMMES,University Of Reading,486877,-9050.14,200012659
BEIS,Met Office,2024-01-10,DEFERRED INCOME,PROGRAMMES,University Of Reading,486878,-6708.23,200012659
BEIS,Met Office,2024-01-23,11 SERVICES,PROGRAMMES,University Of Reading,487972,49310.4,200012659
BEIS,Met Office,2024-01-12,11 SERVICES,PROGRAMMES,WARWICK ECONOMICS & DEVELOPMENT LTD.,487520,12800,116732721
BEIS,Met Office,2024-01-16,13 MISCELLANEOUS,SCIENCE,AB MULTIMEDIA LTD,487613,575,849333502
BEIS,Met Office,2024-01-10,13 MISCELLANEOUS,SCIENCE,AB MULTIMEDIA LTD,487308,1945,849333502
BEIS,Met Office,2024-01-24,11 SERVICES,SCIENCE,ABB INC,11376,10203.95,-
BEIS,Met Office,2024-01-31,13 MISCELLANEOUS,SCIENCE,ELSEVIER B.V.,487151,54987.01,NL00503301980
BEIS,Met Office,2024-01-08,11 SERVICES,SCIENCE,Esri (Uk) Ltd,487265,3745.8,787430791
BEIS,Met Office,2024-01-31,07 EQUIPMENT,SCIENCE,IHP INTERNATIONAL HEATING PRODUCTS AB,25592,18.87,SE556689732701
BEIS,Met Office,2024-01-31,07 EQUIPMENT,SCIENCE,IHP INTERNATIONAL HEATING PRODUCTS AB,25592,419.44,SE556689732701
BEIS,Met Office,2024-01-31,07 EQUIPMENT,SCIENCE,IHP INTERNATIONAL HEATING PRODUCTS AB,25592,883.49,SE556689732701
BEIS,Met Office,2024-01-17,13 MISCELLANEOUS,SCIENCE,Imperial College,487752,1000,649926678
BEIS,Met Office,2024-01-15,08 SOFTWARE LICENCES,SCIENCE,MATHWORKS LTD,487472,4908,700165584
BEIS,Met Office,2024-01-03,11 SERVICES,SCIENCE,MERCATOR OCEAN INTERNATIONAL,25475,103294.05,-
BEIS,Met Office,2024-01-10,11 SERVICES,SCIENCE,NIWA,486756,7577.4,GST059456466
BEIS,Met Office,2024-01-23,11 SERVICES,SCIENCE,Plymouth Marine Laboratory,487894,17202.75,927105830
BEIS,Met Office,2024-01-03,11 SERVICES,SCIENCE,University Of Bristol,475248,50000,991261800
BEIS,Met Office,2024-01-09,11 SERVICES,SCIENCE,University of Edinburgh,487450,12500,592950700
BEIS,Met Office,2024-01-17,11 SERVICES,SCIENCE,University Of Exeter,487786,6250,142047795
BEIS,Met Office,2024-01-17,11 SERVICES,SCIENCE,University Of Exeter,487787,6250,142047795
BEIS,Met Office,2024-01-16,11 SERVICES,SCIENCE,University Of Leeds,487700,3587.49,613451470
BEIS,Met Office,2024-01-31,11 SERVICES,SCIENCE,University Of Leeds,488209,83333.25,613451470
BEIS,Met Office,2024-01-10,13 MISCELLANEOUS,SCIENCE,University Of Oxford,487471,333.33,125506730
BEIS,Met Office,2024-01-05,11 SERVICES,SCIENCE,University Of Oxford,487294,12500,125506730
BEIS,Met Office,2024-01-08,11 SERVICES,SERVICES,ADAM PHONES LTD,487300,88.35,538877093
BEIS,Met Office,2024-01-03,STOCK,SERVICES,Agencia Estatal De Meteorologia,25411,17362.74,-
BEIS,Met Office,2024-01-23,03 STAFF COSTS T&S,SERVICES,AIRPORT CAR RENTALS LTD,487936,478,-
BEIS,Met Office,2024-01-03,STOCK,SERVICES,ALAN MATHEWS,486199,0,689116694
BEIS,Met Office,2024-01-03,11 SERVICES,SERVICES,ALAN MATHEWS,486199,15,689116694
BEIS,Met Office,2024-01-03,TRADE CREDITORS,SERVICES,ALAN MATHEWS,486199,696,689116694
BEIS,Met Office,2024-01-05,11 SERVICES,SERVICES,APPLIED SATELLITE TECHNOLOGY SYSTEMS LTD,487284,33.82,720108683
BEIS,Met Office,2024-01-05,11 SERVICES,SERVICES,APPLIED SATELLITE TECHNOLOGY SYSTEMS LTD,487285,67.65,720108683
BEIS,Met Office,2024-01-08,11 SERVICES,SERVICES,APPLIED SATELLITE TECHNOLOGY SYSTEMS LTD,487287,152.66,720108683
BEIS,Met Office,2024-01-10,03 STAFF COSTS T&S,SERVICES,AVIS BUDGET PAYLESS,25550,921.9,-
BEIS,Met Office,2024-01-24,03 STAFF COSTS T&S,SERVICES,AVIS BUDGET PAYLESS,25551,921.9,-
BEIS,Met Office,2024-01-18,13 MISCELLANEOUS,SERVICES,AVIVA INSURANCE UK LIMITED,487811,1150,105 437 300
BEIS,Met Office,2024-01-24,13 MISCELLANEOUS,SERVICES,AVIVA INSURANCE UK LIMITED,487812,2000,105 437 300
BEIS,Met Office,2024-01-10,11 SERVICES,SERVICES,BENTLEY TELECOM LTD (was Bentley Walker),487459,525,107995930
BEIS,Met Office,2024-01-08,11 SERVICES,SERVICES,Boc Ltd,487208,13676.04,226556555
BEIS,Met Office,2024-01-25,11 SERVICES,SERVICES,CABINET OFFICE - COF LEAD ACCOUNT,488023,1600,-
BEIS,Met Office,2024-01-09,STOCK,SERVICES,Campbell Scientific Ltd,487281,0,428453933
BEIS,Met Office,2024-01-09,STOCK,SERVICES,Campbell Scientific Ltd,487281,0,428453933
BEIS,Met Office,2024-01-09,STOCK,SERVICES,Campbell Scientific Ltd,487281,0,428453933
BEIS,Met Office,2024-01-09,STOCK,SERVICES,Campbell Scientific Ltd,487281,0,428453933
BEIS,Met Office,2024-01-08,11 SERVICES,SERVICES,Campbell Scientific Ltd,487118,60,428453933
BEIS,Met Office,2024-01-18,11 SERVICES,SERVICES,Campbell Scientific Ltd,487754,60,428453933
BEIS,Met Office,2024-01-09,11 SERVICES,SERVICES,Campbell Scientific Ltd,487281,100,428453933
BEIS,Met Office,2024-01-08,10 EQUIPMENT MAINTENANCE,SERVICES,Campbell Scientific Ltd,487118,140,428453933
BEIS,Met Office,2024-01-08,10 EQUIPMENT MAINTENANCE,SERVICES,Campbell Scientific Ltd,487118,140,428453933
BEIS,Met Office,2024-01-18,10 EQUIPMENT MAINTENANCE,SERVICES,Campbell Scientific Ltd,487754,453.6,428453933
BEIS,Met Office,2024-01-18,10 EQUIPMENT MAINTENANCE,SERVICES,Campbell Scientific Ltd,487754,459,428453933
BEIS,Met Office,2024-01-18,10 EQUIPMENT MAINTENANCE,SERVICES,Campbell Scientific Ltd,487754,460.8,428453933
BEIS,Met Office,2024-01-09,TRADE CREDITORS,SERVICES,Campbell Scientific Ltd,487281,612,428453933
BEIS,Met Office,2024-01-09,TRADE CREDITORS,SERVICES,Campbell Scientific Ltd,487281,1579.5,428453933
BEIS,Met Office,2024-01-18,10 EQUIPMENT MAINTENANCE,SERVICES,Campbell Scientific Ltd,487754,7415.1,428453933
BEIS,Met Office,2024-01-09,TRADE CREDITORS,SERVICES,Campbell Scientific Ltd,487281,17496,428453933
BEIS,Met Office,2024-01-09,TRADE CREDITORS,SERVICES,Campbell Scientific Ltd,487281,35595,428453933
BEIS,Met Office,2024-01-12,03 STAFF COSTS T&S,SERVICES,CHARLIE'S TRAVEL LTD,487558,141.53,783848277
BEIS,Met Office,2024-01-12,03 STAFF COSTS T&S,SERVICES,CHARLIE'S TRAVEL LTD,487557,150,783848277
BEIS,Met Office,2024-01-05,03 STAFF COSTS T&S,SERVICES,CHARLIE'S TRAVEL LTD,487218,167.5,783848277
BEIS,Met Office,2024-01-11,03 STAFF COSTS T&S,SERVICES,CHARLIE'S TRAVEL LTD,487556,167.5,783848277
BEIS,Met Office,2024-01-05,03 STAFF COSTS T&S,SERVICES,CHARLIE'S TRAVEL LTD,487133,238.33,783848277
BEIS,Met Office,2024-01-11,03 STAFF COSTS T&S,SERVICES,CHARLIE'S TRAVEL LTD,487556,375.35,783848277
BEIS,Met Office,2024-01-12,03 STAFF COSTS T&S,SERVICES,CHARLIE'S TRAVEL LTD,487557,523.95,783848277
BEIS,Met Office,2024-01-05,03 STAFF COSTS T&S,SERVICES,CHARLIE'S TRAVEL LTD,487218,751,783848277
BEIS,Met Office,2024-01-12,03 STAFF COSTS T&S,SERVICES,CHARLIE'S TRAVEL LTD,487557,845.72,783848277
BEIS,Met Office,2024-01-05,03 STAFF COSTS T&S,SERVICES,CHARLIE'S TRAVEL LTD,487218,888.07,783848277
BEIS,Met Office,2024-01-11,03 STAFF COSTS T&S,SERVICES,CHARLIE'S TRAVEL LTD,487556,1109.89,783848277
BEIS,Met Office,2024-01-12,08 SOFTWARE LICENCES,SERVICES,CIVICA UK LIMITED,487596,11381.25,391171065
BEIS,Met Office,2024-01-24,08 SOFTWARE LICENCES,SERVICES,CIVICA UK LIMITED,487947,27229,391171065
BEIS,Met Office,2024-01-05,07 EQUIPMENT,SERVICES,CLARKE LANE ENGINEERING LTD,487112,15,412068487
BEIS,Met Office,2024-01-05,07 EQUIPMENT,SERVICES,CLARKE LANE ENGINEERING LTD,487113,196.8,412068487
BEIS,Met Office,2024-01-05,07 EQUIPMENT,SERVICES,CLARKE LANE ENGINEERING LTD,487113,356.8,412068487
BEIS,Met Office,2024-01-05,07 EQUIPMENT,SERVICES,CLARKE LANE ENGINEERING LTD,487112,377.94,412068487
BEIS,Met Office,2024-01-05,07 EQUIPMENT,SERVICES,CLARKE LANE ENGINEERING LTD,487113,461.04,412068487
BEIS,Met Office,2024-01-15,11 SERVICES,SERVICES,CLOUDREACH EUROPE LIMITED,487670,7300,978187168
BEIS,Met Office,2024-01-31,11 SERVICES,SERVICES,COLLECTE LOCALISATION SATELLITES (C.L.S.),25561,215.6,FR95338034390
BEIS,Met Office,2024-01-31,13 MISCELLANEOUS,SERVICES,COLLECTE LOCALISATION SATELLITES (C.L.S.),25560,414.9,FR95338034390
BEIS,Met Office,2024-01-31,11 SERVICES,SERVICES,COLLECTE LOCALISATION SATELLITES (C.L.S.),25559,3036.85,FR95338034390
BEIS,Met Office,2024-01-31,11 SERVICES,SERVICES,COLLECTE LOCALISATION SATELLITES (C.L.S.),25558,11717.84,FR95338034390
BEIS,Met Office,2024-01-10,STOCK,SERVICES,COMMUNICATIONS & POWER IND. EUROPE LTD,11326,0,664103850
BEIS,Met Office,2024-01-24,STOCK,SERVICES,COMMUNICATIONS & POWER IND. EUROPE LTD,11366,0,664103850
BEIS,Met Office,2024-01-24,STOCK,SERVICES,COMMUNICATIONS & POWER IND. EUROPE LTD,11366,0,664103850
BEIS,Met Office,2024-01-24,STOCK,SERVICES,COMMUNICATIONS & POWER IND. EUROPE LTD,11366,0,664103850
BEIS,Met Office,2024-01-24,STOCK,SERVICES,COMMUNICATIONS & POWER IND. EUROPE LTD,11366,0,664103850
BEIS,Met Office,2024-01-24,STOCK,SERVICES,COMMUNICATIONS & POWER IND. EUROPE LTD,11366,0,664103850
BEIS,Met Office,2024-01-24,TRADE CREDITORS,SERVICES,COMMUNICATIONS & POWER IND. EUROPE LTD,11366,787.8,664103850
BEIS,Met Office,2024-01-24,TRADE CREDITORS,SERVICES,COMMUNICATIONS & POWER IND. EUROPE LTD,11366,1532.27,664103850
BEIS,Met Office,2024-01-24,TRADE CREDITORS,SERVICES,COMMUNICATIONS & POWER IND. EUROPE LTD,11366,2647,664103850
BEIS,Met Office,2024-01-24,TRADE CREDITORS,SERVICES,COMMUNICATIONS & POWER IND. EUROPE LTD,11366,2768.32,664103850
BEIS,Met Office,2024-01-24,TRADE CREDITORS,SERVICES,COMMUNICATIONS & POWER IND. EUROPE LTD,11366,15492.82,664103850
BEIS,Met Office,2024-01-10,TRADE CREDITORS,SERVICES,COMMUNICATIONS & POWER IND. EUROPE LTD,11326,45504.37,664103850
BEIS,Met Office,2024-01-08,07 EQUIPMENT,SERVICES,COMPUTACENTER (UK) LTD,487105,2467.71,490334648
BEIS,Met Office,2024-01-12,07 EQUIPMENT,SERVICES,COMPUTACENTER (UK) LTD,487631,3265.36,490334648
BEIS,Met Office,2024-01-12,03 STAFF COSTS T&S,SERVICES,DBS FINANCE RECEIPTS CTS,487536,6984,888805068
BEIS,Met Office,2024-01-24,13 MISCELLANEOUS,SERVICES,DEMSTAR BUSINESS SOLUTIONS LTD,25552,84.84,10156145J
BEIS,Met Office,2024-01-12,11 SERVICES,SERVICES,DHL INTERNATIONAL (UK) LTD,487632,56,751812341
BEIS,Met Office,2024-01-31,13 MISCELLANEOUS,SERVICES,ELSEVIER B.V.,487151,32899,NL00503301980
BEIS,Met Office,2024-01-05,03 STAFF COSTS T&S,SERVICES,FALKLAND ISLAND COMPANY LTD,487313,700,N/A
BEIS,Met Office,2024-01-05,03 STAFF COSTS T&S,SERVICES,FALKLAND ISLAND COMPANY LTD,487314,700,N/A
BEIS,Met Office,2024-01-05,03 STAFF COSTS T&S,SERVICES,FALKLAND ISLAND COMPANY LTD,487315,700,N/A
BEIS,Met Office,2024-01-11,07 EQUIPMENT,SERVICES,FG LIBRARY PRODUCTS LTD,487484,60,765 3019 30
BEIS,Met Office,2024-01-11,07 EQUIPMENT,SERVICES,FG LIBRARY PRODUCTS LTD,485875,7054,765 3019 30
BEIS,Met Office,2024-01-05,11 SERVICES,SERVICES,FLYFORM LTD,487169,8979.84,237333808
BEIS,Met Office,2024-01-10,11 SERVICES,SERVICES,GAMMA TELECOM LTD,487540,4518.54,823820344
BEIS,Met Office,2024-01-17,11 SERVICES,SERVICES,GQA QUALIFICATIONS LTD,487686,440,-
BEIS,Met Office,2024-01-05,11 SERVICES,SERVICES,GROUND CONTROL UK TECHNOLOGIES LTD,487080,71,GB277698137
BEIS,Met Office,2024-01-24,11 SERVICES,SERVICES,GROUND CONTROL UK TECHNOLOGIES LTD,487954,71,GB277698137
BEIS,Met Office,2024-01-05,11 SERVICES,SERVICES,GROUND CONTROL UK TECHNOLOGIES LTD,487080,228,GB277698137
BEIS,Met Office,2024-01-24,11 SERVICES,SERVICES,GROUND CONTROL UK TECHNOLOGIES LTD,487954,228,GB277698137
BEIS,Met Office,2024-01-05,11 SERVICES,SERVICES,GROUND CONTROL UK TECHNOLOGIES LTD,487080,690,GB277698137
BEIS,Met Office,2024-01-24,11 SERVICES,SERVICES,GROUND CONTROL UK TECHNOLOGIES LTD,487954,690.02,GB277698137
BEIS,Met Office,2024-01-24,11 SERVICES,SERVICES,GROUND CONTROL UK TECHNOLOGIES LTD,487954,832.12,GB277698137
BEIS,Met Office,2024-01-05,11 SERVICES,SERVICES,GROUND CONTROL UK TECHNOLOGIES LTD,487080,868.95,GB277698137
BEIS,Met Office,2024-01-05,11 SERVICES,SERVICES,GROUND CONTROL UK TECHNOLOGIES LTD,487080,1258.02,GB277698137
BEIS,Met Office,2024-01-24,11 SERVICES,SERVICES,GROUND CONTROL UK TECHNOLOGIES LTD,487954,1258.06,GB277698137
BEIS,Met Office,2024-01-05,11 SERVICES,SERVICES,GROUND CONTROL UK TECHNOLOGIES LTD,487080,2110.53,GB277698137
BEIS,Met Office,2024-01-24,11 SERVICES,SERVICES,GROUND CONTROL UK TECHNOLOGIES LTD,487954,2140.09,GB277698137
BEIS,Met Office,2024-01-05,11 SERVICES,SERVICES,GROUND CONTROL UK TECHNOLOGIES LTD,487080,4140.04,GB277698137
BEIS,Met Office,2024-01-24,11 SERVICES,SERVICES,GROUND CONTROL UK TECHNOLOGIES LTD,487954,4140.18,GB277698137
BEIS,Met Office,2024-01-17,03 STAFF COSTS T&S,SERVICES,HCR LTD,487679,627,733 7205 46
BEIS,Met Office,2024-01-17,03 STAFF COSTS T&S,SERVICES,HCR LTD,487681,680.91,733 7205 46
BEIS,Met Office,2024-01-17,03 STAFF COSTS T&S,SERVICES,HCR LTD,487682,3842.39,733 7205 46
BEIS,Met Office,2024-01-18,03 STAFF COSTS T&S,SERVICES,HCR LTD,487678,5287.09,733 7205 46
BEIS,Met Office,2024-01-16,03 STAFF COSTS T&S,SERVICES,HCR LTD,487680,8223,733 7205 46
BEIS,Met Office,2024-01-05,11 SERVICES,SERVICES,HITACHI CAPITAL VEHICLE SOLUTIONS,487166,12.5,GB 823 8248 22
BEIS,Met Office,2024-01-05,11 SERVICES,SERVICES,HITACHI CAPITAL VEHICLE SOLUTIONS,487241,1045.38,GB 823 8248 22
BEIS,Met Office,2024-01-31,STOCK,SERVICES,Icelandic Meteorological Office,25572,42878.95,99733
BEIS,Met Office,2024-01-10,13 MISCELLANEOUS,SERVICES,IMAGETEK SYSTEMS LTD,487461,2055,GB586331424
BEIS,Met Office,2024-01-05,11 SERVICES,SERVICES,INMARSAT SOLUTIONS (CANADA) INC,487256,43.24,766144223
BEIS,Met Office,2024-01-05,11 SERVICES,SERVICES,INMARSAT SOLUTIONS (CANADA) INC,487257,43.24,766144223
BEIS,Met Office,2024-01-05,11 SERVICES,SERVICES,INMARSAT SOLUTIONS (CANADA) INC,487258,86.48,766144223
BEIS,Met Office,2024-01-10,11 SERVICES,SERVICES,MADE TECH,487509,186095.54,938565184
BEIS,Met Office,2024-01-15,08 SOFTWARE LICENCES,SERVICES,MERKLE ONE,487669,8022.92,GB478022835
BEIS,Met Office,2024-01-05,COMPUTER SOFTWARE,SERVICES,NOMENSA,487077,7745.89,GB771727411
BEIS,Met Office,2024-01-17,13 MISCELLANEOUS,SERVICES,NORSCOTT VENDING SERVICES LTD,487676,25,751402071
BEIS,Met Office,2024-01-05,06 ACCOMMODATION,SERVICES,NORTHWOOD OFFICERS� MESS,487309,640.8,223 6434 83
BEIS,Met Office,2024-01-05,06 ACCOMMODATION,SERVICES,NORTHWOOD OFFICERS� MESS,487312,640.8,223 6434 83
BEIS,Met Office,2024-01-05,06 ACCOMMODATION,SERVICES,NORTHWOOD OFFICERS� MESS,487310,662.16,223 6434 83
BEIS,Met Office,2024-01-05,06 ACCOMMODATION,SERVICES,NORTHWOOD OFFICERS� MESS,487311,662.16,223 6434 83
BEIS,Met Office,2024-01-17,11 SERVICES,SERVICES,NSSL GLOBAL LTD,11348,55.15,725151948
BEIS,Met Office,2024-01-17,11 SERVICES,SERVICES,NSSL GLOBAL LTD,11350,505.31,725151948
BEIS,Met Office,2024-01-11,11 SERVICES,SERVICES,NSSL GLOBAL LTD,485457,4389.1,725151948
BEIS,Met Office,2024-01-11,11 SERVICES,SERVICES,NSSL GLOBAL LTD,484803,8275,725151948
BEIS,Met Office,2024-01-03,13 MISCELLANEOUS,SERVICES,PETERS & MAY GLOBAL LOGISTICS LTD,487020,75,995183276
BEIS,Met Office,2024-01-31,STOCK,SERVICES,PETERS & MAY GLOBAL LOGISTICS LTD,488201,75,995183276
BEIS,Met Office,2024-01-18,STOCK,SERVICES,PHOTONIC SOLUTIONS LTD,487753,0,724212864
BEIS,Met Office,2024-01-18,11 SERVICES,SERVICES,PHOTONIC SOLUTIONS LTD,487753,25,724212864
BEIS,Met Office,2024-01-18,TRADE CREDITORS,SERVICES,PHOTONIC SOLUTIONS LTD,487753,2775,724212864
BEIS,Met Office,2024-01-05,11 SERVICES,SERVICES,PUBLIC HEALTH ENGLAND,482033,1014,155579377
BEIS,Met Office,2024-01-05,11 SERVICES,SERVICES,PURPLE GRIFFON LIMITED,486052,1000,804 8897 90
BEIS,Met Office,2024-01-05,11 SERVICES,SERVICES,PURPLE GRIFFON LIMITED,486052,1000,804 8897 90
BEIS,Met Office,2024-01-05,11 SERVICES,SERVICES,PURPLE GRIFFON LIMITED,486052,1000,804 8897 90
BEIS,Met Office,2024-01-05,11 SERVICES,SERVICES,PURPLE GRIFFON LIMITED,486052,1000,804 8897 90
BEIS,Met Office,2024-01-05,11 SERVICES,SERVICES,QUESTBACK UK LIMITED,487171,800,GB 382 9785 37
BEIS,Met Office,2024-01-26,13 MISCELLANEOUS,SERVICES,Royal Meteorological Society,488030,677,-
BEIS,Met Office,2024-01-08,11 SERVICES,SERVICES,SOFTWIRE TECHNOLOGY LIMITED,487297,4200,752 1253 57
BEIS,Met Office,2024-01-19,07 EQUIPMENT,SERVICES,SOUTHERN ROPES,487807,5000,GB 891 9765 57
BEIS,Met Office,2024-01-24,08 SOFTWARE LICENCES,SERVICES,SOUTRON GLOBAL INC,487971,16390,863868129
BEIS,Met Office,2024-01-19,03 STAFF COSTS T&S,SERVICES,STORAGE FACTORY,487803,185,130 5237 12
BEIS,Met Office,2024-01-10,07 EQUIPMENT,SERVICES,TELEDYNE WEBB RESEARCH,11327,2432.15,-
BEIS,Met Office,2024-01-26,11 SERVICES,SERVICES,Trinity House,488028,13849.28,243120414
BEIS,Met Office,2024-01-24,07 EQUIPMENT,SERVICES,UC SAN DIEGO'S SCRIPPS INST. OF OCEANOGRAPHY,11384,29010.62,-
BEIS,Met Office,2024-01-24,10 EQUIPMENT MAINTENANCE,SERVICES,Vaisala Oyj,25410,10200.61,FI01244162
BEIS,Met Office,2024-01-05,11 SERVICES,SERVICES,VOLKSWAGEN GROUP LEASING,487153,-620.6,BG745963883
BEIS,Met Office,2024-01-05,11 SERVICES,SERVICES,VOLKSWAGEN GROUP LEASING,486218,-494.7,BG745963883
BEIS,Met Office,2024-01-05,11 SERVICES,SERVICES,VOLKSWAGEN GROUP LEASING,486729,-60,BG745963883
BEIS,Met Office,2024-01-05,11 SERVICES,SERVICES,VOLKSWAGEN GROUP LEASING,442456,60,BG745963883
BEIS,Met Office,2024-01-05,11 SERVICES,SERVICES,VOLKSWAGEN GROUP LEASING,487170,131.05,BG745963883
BEIS,Met Office,2024-01-31,11 SERVICES,SERVICES,VOLKSWAGEN GROUP LEASING,488123,131.05,BG745963883
BEIS,Met Office,2024-01-05,11 SERVICES,SERVICES,VOLKSWAGEN GROUP LEASING,487164,134.61,BG745963883
BEIS,Met Office,2024-01-31,11 SERVICES,SERVICES,VOLKSWAGEN GROUP LEASING,488126,134.61,BG745963883
BEIS,Met Office,2024-01-05,11 SERVICES,SERVICES,VOLKSWAGEN GROUP LEASING,487162,134.77,BG745963883
BEIS,Met Office,2024-01-31,11 SERVICES,SERVICES,VOLKSWAGEN GROUP LEASING,488124,134.77,BG745963883
BEIS,Met Office,2024-01-05,11 SERVICES,SERVICES,VOLKSWAGEN GROUP LEASING,487159,160.02,BG745963883
BEIS,Met Office,2024-01-31,11 SERVICES,SERVICES,VOLKSWAGEN GROUP LEASING,488130,160.02,BG745963883
BEIS,Met Office,2024-01-05,11 SERVICES,SERVICES,VOLKSWAGEN GROUP LEASING,487155,195.57,BG745963883
BEIS,Met Office,2024-01-31,11 SERVICES,SERVICES,VOLKSWAGEN GROUP LEASING,488134,195.57,BG745963883
BEIS,Met Office,2024-01-05,11 SERVICES,SERVICES,VOLKSWAGEN GROUP LEASING,487156,199.82,BG745963883
BEIS,Met Office,2024-01-31,11 SERVICES,SERVICES,VOLKSWAGEN GROUP LEASING,488131,199.82,BG745963883
BEIS,Met Office,2024-01-05,11 SERVICES,SERVICES,VOLKSWAGEN GROUP LEASING,487158,213.27,BG745963883
BEIS,Met Office,2024-01-31,11 SERVICES,SERVICES,VOLKSWAGEN GROUP LEASING,488128,213.27,BG745963883
BEIS,Met Office,2024-01-05,11 SERVICES,SERVICES,VOLKSWAGEN GROUP LEASING,487161,230.85,BG745963883
BEIS,Met Office,2024-01-31,11 SERVICES,SERVICES,VOLKSWAGEN GROUP LEASING,488125,230.85,BG745963883
BEIS,Met Office,2024-01-05,11 SERVICES,SERVICES,VOLKSWAGEN GROUP LEASING,487160,248.12,BG745963883
BEIS,Met Office,2024-01-31,11 SERVICES,SERVICES,VOLKSWAGEN GROUP LEASING,488127,248.12,BG745963883
BEIS,Met Office,2024-01-05,11 SERVICES,SERVICES,VOLKSWAGEN GROUP LEASING,487163,260.26,BG745963883
BEIS,Met Office,2024-01-31,11 SERVICES,SERVICES,VOLKSWAGEN GROUP LEASING,488133,260.26,BG745963883
BEIS,Met Office,2024-01-05,11 SERVICES,SERVICES,VOLKSWAGEN GROUP LEASING,487152,260.65,BG745963883
BEIS,Met Office,2024-01-31,11 SERVICES,SERVICES,VOLKSWAGEN GROUP LEASING,488129,260.65,BG745963883
BEIS,Met Office,2024-01-05,11 SERVICES,SERVICES,VOLKSWAGEN GROUP LEASING,487154,289.9,BG745963883
BEIS,Met Office,2024-01-31,11 SERVICES,SERVICES,VOLKSWAGEN GROUP LEASING,488135,289.9,BG745963883
BEIS,Met Office,2024-01-05,11 SERVICES,SERVICES,VOLKSWAGEN GROUP LEASING,487157,290.06,BG745963883
BEIS,Met Office,2024-01-31,11 SERVICES,SERVICES,VOLKSWAGEN GROUP LEASING,488132,290.06,BG745963883
BEIS,Met Office,2024-01-24,13 MISCELLANEOUS,SERVICES,YOUNG CALIBRATION LIMITED,487997,25,673900720
BEIS,Met Office,2024-01-24,10 EQUIPMENT MAINTENANCE,SERVICES,YOUNG CALIBRATION LIMITED,487997,4500,673900720
BEIS,Met Office,2024-01-05,11 SERVICES,TECHNOLOGY AND CIO,AKAMAI TECHNOLOGIES LTD,487288,4937.28,745091237
BEIS,Met Office,2024-01-05,11 SERVICES,TECHNOLOGY AND CIO,AKAMAI TECHNOLOGIES LTD,487288,25920.75,745091237
BEIS,Met Office,2024-01-03,11 SERVICES,TECHNOLOGY AND CIO,AMAZON WEB SERVICES EMEA SARL,11345,-1902.1,GB 283644382
BEIS,Met Office,2024-01-03,11 SERVICES,TECHNOLOGY AND CIO,AMAZON WEB SERVICES EMEA SARL,11323,376.76,GB 283644382
BEIS,Met Office,2024-01-31,11 SERVICES,TECHNOLOGY AND CIO,AMAZON WEB SERVICES EMEA SARL,11362,401.01,GB 283644382
BEIS,Met Office,2024-01-31,11 SERVICES,TECHNOLOGY AND CIO,AMAZON WEB SERVICES EMEA SARL,11365,1296.44,GB 283644382
BEIS,Met Office,2024-01-03,11 SERVICES,TECHNOLOGY AND CIO,AMAZON WEB SERVICES EMEA SARL,11320,1895,GB 283644382
BEIS,Met Office,2024-01-10,11 SERVICES,TECHNOLOGY AND CIO,AMAZON WEB SERVICES EMEA SARL,11344,1902.1,GB 283644382
BEIS,Met Office,2024-01-19,11 SERVICES,TECHNOLOGY AND CIO,BAE SYSTEMS APPLIED INTELLIGENCE LIMITED,487097,801.22,GB641407169
BEIS,Met Office,2024-01-23,11 SERVICES,TECHNOLOGY AND CIO,BAE SYSTEMS APPLIED INTELLIGENCE LIMITED,487918,2138.55,GB641407169
BEIS,Met Office,2024-01-23,11 SERVICES,TECHNOLOGY AND CIO,BAE SYSTEMS APPLIED INTELLIGENCE LIMITED,487865,6300,GB641407169
BEIS,Met Office,2024-01-23,11 SERVICES,TECHNOLOGY AND CIO,BAE SYSTEMS APPLIED INTELLIGENCE LIMITED,487908,6750,GB641407169
BEIS,Met Office,2024-01-23,11 SERVICES,TECHNOLOGY AND CIO,BAE SYSTEMS APPLIED INTELLIGENCE LIMITED,487910,7200,GB641407169
BEIS,Met Office,2024-01-23,11 SERVICES,TECHNOLOGY AND CIO,BAE SYSTEMS APPLIED INTELLIGENCE LIMITED,487860,7650,GB641407169
BEIS,Met Office,2024-01-23,11 SERVICES,TECHNOLOGY AND CIO,BAE SYSTEMS APPLIED INTELLIGENCE LIMITED,487909,7650,GB641407169
BEIS,Met Office,2024-01-23,11 SERVICES,TECHNOLOGY AND CIO,BAE SYSTEMS APPLIED INTELLIGENCE LIMITED,487869,7855.75,GB641407169
BEIS,Met Office,2024-01-23,11 SERVICES,TECHNOLOGY AND CIO,BAE SYSTEMS APPLIED INTELLIGENCE LIMITED,487864,7919.92,GB641407169
BEIS,Met Office,2024-01-23,11 SERVICES,TECHNOLOGY AND CIO,BAE SYSTEMS APPLIED INTELLIGENCE LIMITED,487870,8115,GB641407169
BEIS,Met Office,2024-01-23,11 SERVICES,TECHNOLOGY AND CIO,BAE SYSTEMS APPLIED INTELLIGENCE LIMITED,487866,9000,GB641407169
BEIS,Met Office,2024-01-23,11 SERVICES,TECHNOLOGY AND CIO,BAE SYSTEMS APPLIED INTELLIGENCE LIMITED,487871,9197,GB641407169
BEIS,Met Office,2024-01-23,11 SERVICES,TECHNOLOGY AND CIO,BAE SYSTEMS APPLIED INTELLIGENCE LIMITED,487905,9197,GB641407169
BEIS,Met Office,2024-01-23,11 SERVICES,TECHNOLOGY AND CIO,BAE SYSTEMS APPLIED INTELLIGENCE LIMITED,487868,9900,GB641407169
BEIS,Met Office,2024-01-23,11 SERVICES,TECHNOLOGY AND CIO,BAE SYSTEMS APPLIED INTELLIGENCE LIMITED,487867,10820,GB641407169
BEIS,Met Office,2024-01-23,11 SERVICES,TECHNOLOGY AND CIO,BAE SYSTEMS APPLIED INTELLIGENCE LIMITED,487873,11880,GB641407169
BEIS,Met Office,2024-01-23,11 SERVICES,TECHNOLOGY AND CIO,BAE SYSTEMS APPLIED INTELLIGENCE LIMITED,487948,11880,GB641407169
BEIS,Met Office,2024-01-23,11 SERVICES,TECHNOLOGY AND CIO,BAE SYSTEMS APPLIED INTELLIGENCE LIMITED,487862,13035,GB641407169
BEIS,Met Office,2024-01-23,11 SERVICES,TECHNOLOGY AND CIO,BAE SYSTEMS APPLIED INTELLIGENCE LIMITED,487872,13200,GB641407169
BEIS,Met Office,2024-01-23,11 SERVICES,TECHNOLOGY AND CIO,BAE SYSTEMS APPLIED INTELLIGENCE LIMITED,487904,15008,GB641407169
BEIS,Met Office,2024-01-23,11 SERVICES,TECHNOLOGY AND CIO,BAE SYSTEMS APPLIED INTELLIGENCE LIMITED,487906,15477,GB641407169
BEIS,Met Office,2024-01-23,11 SERVICES,TECHNOLOGY AND CIO,BAE SYSTEMS APPLIED INTELLIGENCE LIMITED,487863,15512.5,GB641407169
BEIS,Met Office,2024-01-23,11 SERVICES,TECHNOLOGY AND CIO,BAE SYSTEMS APPLIED INTELLIGENCE LIMITED,487949,15946,GB641407169
BEIS,Met Office,2024-01-23,11 SERVICES,TECHNOLOGY AND CIO,BAE SYSTEMS APPLIED INTELLIGENCE LIMITED,487907,16415,GB641407169
BEIS,Met Office,2024-01-23,11 SERVICES,TECHNOLOGY AND CIO,BAE SYSTEMS APPLIED INTELLIGENCE LIMITED,487861,18291,GB641407169
BEIS,Met Office,2024-01-03,11 SERVICES,TECHNOLOGY AND CIO,BAE SYSTEMS APPLIED INTELLIGENCE LIMITED,486814,18760,GB641407169
BEIS,Met Office,2024-01-15,11 SERVICES,TECHNOLOGY AND CIO,BAE SYSTEMS APPLIED INTELLIGENCE LIMITED,487543,18760,GB641407169
BEIS,Met Office,2024-01-15,11 SERVICES,TECHNOLOGY AND CIO,BJSS LIMITED,487547,6875,613295452
BEIS,Met Office,2024-01-18,11 SERVICES,TECHNOLOGY AND CIO,BJSS LIMITED,487621,44155.5,613295452
BEIS,Met Office,2024-01-12,08 SOFTWARE LICENCES,TECHNOLOGY AND CIO,BYTES SOFTWARE SERVICES LTD,487618,16561,823818226
BEIS,Met Office,2024-01-12,08 SOFTWARE LICENCES,TECHNOLOGY AND CIO,BYTES SOFTWARE SERVICES LTD,487618,17158.17,823818226
BEIS,Met Office,2024-01-03,08 SOFTWARE LICENCES,TECHNOLOGY AND CIO,BYTES SOFTWARE SERVICES LTD,487116,35511.36,823818226
BEIS,Met Office,2024-01-18,11 SERVICES,TECHNOLOGY AND CIO,CLOUDREACH EUROPE LIMITED,487614,3807.65,978187168
BEIS,Met Office,2024-01-18,11 SERVICES,TECHNOLOGY AND CIO,CLOUDREACH EUROPE LIMITED,487671,5150,978187168
BEIS,Met Office,2024-01-19,08 SOFTWARE LICENCES,TECHNOLOGY AND CIO,CODILITY LIMITED,484772,9350,GB981191408
BEIS,Met Office,2024-01-29,07 EQUIPMENT,TECHNOLOGY AND CIO,COMPUTACENTER (UK) LTD,488102,492.52,490334648
BEIS,Met Office,2024-01-26,07 EQUIPMENT,TECHNOLOGY AND CIO,COMPUTACENTER (UK) LTD,488049,560.2,490334648
BEIS,Met Office,2024-01-23,07 EQUIPMENT,TECHNOLOGY AND CIO,COMPUTACENTER (UK) LTD,487968,1555,490334648
BEIS,Met Office,2024-01-03,08 SOFTWARE LICENCES,TECHNOLOGY AND CIO,COMPUTACENTER (UK) LTD,487106,2679.5,490334648
BEIS,Met Office,2024-01-03,10 EQUIPMENT MAINTENANCE,TECHNOLOGY AND CIO,COMPUTACENTER (UK) LTD,487165,3485.86,490334648
BEIS,Met Office,2024-01-03,11 SERVICES,TECHNOLOGY AND CIO,COMPUTACENTER (UK) LTD,487022,3737.07,490334648
BEIS,Met Office,2024-01-03,11 SERVICES,TECHNOLOGY AND CIO,COMPUTACENTER (UK) LTD,487021,3745,490334648
BEIS,Met Office,2024-01-31,10 EQUIPMENT MAINTENANCE,TECHNOLOGY AND CIO,COMPUTACENTER (UK) LTD,488172,4979.8,490334648
BEIS,Met Office,2024-01-10,INFORMATION TECHNOLOGY,TECHNOLOGY AND CIO,COMPUTACENTER (UK) LTD,487474,21734.84,490334648
BEIS,Met Office,2024-01-03,10 EQUIPMENT MAINTENANCE,TECHNOLOGY AND CIO,COMPUTACENTER (UK) LTD,487095,25690.1,490334648
BEIS,Met Office,2024-01-10,10 EQUIPMENT MAINTENANCE,TECHNOLOGY AND CIO,COMPUTACENTER (UK) LTD,487453,27677.11,490334648
BEIS,Met Office,2024-01-23,10 EQUIPMENT MAINTENANCE,TECHNOLOGY AND CIO,COMPUTACENTER (UK) LTD,487990,31314.24,490334648
BEIS,Met Office,2024-01-31,10 EQUIPMENT MAINTENANCE,TECHNOLOGY AND CIO,COMPUTACENTER (UK) LTD,488173,43184.88,490334648
BEIS,Met Office,2024-01-05,08 SOFTWARE LICENCES,TECHNOLOGY AND CIO,Eficode UK Limited formerly Clearvision,487089,8482.05,881364801
BEIS,Met Office,2024-01-05,08 SOFTWARE LICENCES,TECHNOLOGY AND CIO,Eficode UK Limited formerly Clearvision,487089,21240.37,881364801
BEIS,Met Office,2024-01-05,08 SOFTWARE LICENCES,TECHNOLOGY AND CIO,Eficode UK Limited formerly Clearvision,487089,34327.33,881364801
BEIS,Met Office,2024-01-05,08 SOFTWARE LICENCES,TECHNOLOGY AND CIO,Eficode UK Limited formerly Clearvision,487089,63066.49,881364801
BEIS,Met Office,2024-01-03,07 EQUIPMENT,TECHNOLOGY AND CIO,"FIGMA, INC.",11328,3569.28,-
BEIS,Met Office,2024-01-05,08 SOFTWARE LICENCES,TECHNOLOGY AND CIO,GOOGLE IRELAND LTD,487212,52.37,6388047V
BEIS,Met Office,2024-01-09,10 EQUIPMENT MAINTENANCE,TECHNOLOGY AND CIO,Hewlett Packard Ltd,487301,188111.93,314149679
BEIS,Met Office,2024-01-09,10 EQUIPMENT MAINTENANCE,TECHNOLOGY AND CIO,Hewlett Packard Ltd,487301,1267831,314149679
BEIS,Met Office,2024-01-05,08 SOFTWARE LICENCES,TECHNOLOGY AND CIO,Ibm United Kingdom Ltd,487213,7253.6,107328000
BEIS,Met Office,2024-01-24,08 SOFTWARE LICENCES,TECHNOLOGY AND CIO,Ibm United Kingdom Ltd,487998,11703,107328000
BEIS,Met Office,2024-01-23,07 EQUIPMENT,TECHNOLOGY AND CIO,INSURGO MEDIA SERVICES LTD,487967,9347.1,979682734
BEIS,Met Office,2024-01-08,11 SERVICES,TECHNOLOGY AND CIO,NORBECK LTD,487293,1263.2,543334559
BEIS,Met Office,2024-01-08,11 SERVICES,TECHNOLOGY AND CIO,NORBECK LTD,487292,1773.8,543334559
BEIS,Met Office,2024-01-24,08 SOFTWARE LICENCES,TECHNOLOGY AND CIO,NUMERICAL ALGORITHMS GROUP LTD,488022,2245,195907811
BEIS,Met Office,2024-01-08,11 SERVICES,TECHNOLOGY AND CIO,QA LTD,487031,-300,864455303
BEIS,Met Office,2024-01-17,11 SERVICES,TECHNOLOGY AND CIO,QA LTD,487791,-150,864455303
BEIS,Met Office,2024-01-26,11 SERVICES,TECHNOLOGY AND CIO,QA LTD,488050,2800,864455303
BEIS,Met Office,2024-01-26,11 SERVICES,TECHNOLOGY AND CIO,QA LTD,487748,3600,864455303
BEIS,Met Office,2024-01-26,11 SERVICES,TECHNOLOGY AND CIO,QA LTD,487741,3839.4,864455303
BEIS,Met Office,2024-01-16,11 SERVICES,TECHNOLOGY AND CIO,QA LTD,487745,4500,864455303
BEIS,Met Office,2024-01-16,11 SERVICES,TECHNOLOGY AND CIO,QA LTD,487751,4800,864455303
BEIS,Met Office,2024-01-17,11 SERVICES,TECHNOLOGY AND CIO,QA LTD,487790,4800,864455303
BEIS,Met Office,2024-01-16,11 SERVICES,TECHNOLOGY AND CIO,QA LTD,487747,5130,864455303
BEIS,Met Office,2024-01-08,11 SERVICES,TECHNOLOGY AND CIO,QA LTD,486127,5700,864455303
BEIS,Met Office,2024-01-19,11 SERVICES,TECHNOLOGY AND CIO,QA LTD,487746,5700,864455303
BEIS,Met Office,2024-01-17,11 SERVICES,TECHNOLOGY AND CIO,QA LTD,487749,5700,864455303
BEIS,Met Office,2024-01-17,11 SERVICES,TECHNOLOGY AND CIO,QA LTD,487750,9000,864455303
BEIS,Met Office,2024-01-17,11 SERVICES,TECHNOLOGY AND CIO,QA LTD,487744,9900,864455303
BEIS,Met Office,2024-01-31,11 SERVICES,TECHNOLOGY AND CIO,QA LTD,488155,10200,864455303
BEIS,Met Office,2024-01-29,11 SERVICES,TECHNOLOGY AND CIO,QA LTD,487742,10650,864455303
BEIS,Met Office,2024-01-16,11 SERVICES,TECHNOLOGY AND CIO,QA LTD,487743,11400,864455303
BEIS,Met Office,2024-01-17,11 SERVICES,TECHNOLOGY AND CIO,QA LTD,486529,12300,864455303
BEIS,Met Office,2024-01-09,11 SERVICES,TECHNOLOGY AND CIO,QA LTD,486812,13200,864455303
BEIS,Met Office,2024-01-09,11 SERVICES,TECHNOLOGY AND CIO,QA LTD,486689,30705,864455303
BEIS,Met Office,2024-01-08,11 SERVICES,TECHNOLOGY AND CIO,REDROCK CONSULTING LIMITED,487296,7200,862 2477 15
BEIS,Met Office,2024-01-18,11 SERVICES,TECHNOLOGY AND CIO,SPECIALIST COMPUTER CENTRES,487082,24693.77,313651680
BEIS,Met Office,2024-01-22,11 SERVICES,TECHNOLOGY AND CIO,SPECIALIST COMPUTER CENTRES,487895,25913.81,313651680
BEIS,Met Office,2024-01-10,07 EQUIPMENT,TECHNOLOGY AND CIO,SSE CONTRACTING LTD,487444,247.3,382894546
BEIS,Met Office,2024-01-05,11 SERVICES,TECHNOLOGY AND CIO,SSE CONTRACTING LTD,487263,8210.95,382894546
BEIS,Met Office,2024-01-10,11 SERVICES,TECHNOLOGY AND CIO,SYNTHESYS SYSTEMS ENGINEERS LTD,487521,1857.6,499309492
BEIS,Met Office,2024-01-05,11 SERVICES,TECHNOLOGY AND CIO,WIREFAST LTD,487246,1001.99,749536001
BEIS,Met Office,2024-01-05,11 SERVICES,TECHNOLOGY AND CIO,WIREFAST LTD,487247,1352.08,749536001
BEIS,Met Office,2024-01-05,11 SERVICES,TECHNOLOGY AND CIO,WIREFAST LTD,487245,2152.7,749536001
BEIS,Met Office,2024-01-19,11 SERVICES,TECHNOLOGY AND CIO,WT CONSULTANCY (SW) LTD,482349,1408.33,223 4662 25
